Workbook

Sheet RESUMEN LICITACION
A3: FORMATO PROPUESTA ECONÓMICA
B5: No. ITEM | C5: DESCRIPCIÓN ARTÍCULO | D5: UNIDAD DE MEDIDA | E5: CANTIDAD | F5: VALOR TECHO | H5: VALOR OFERTADO
B6: 1 | C6: COMPONENTE 1 - OBRA - COSTO DIRECTO | D6: GL | E6: 1 | F6: ='COMPONENTE 1 - OBRA'!G1812 -> COP 103,958,751,016 | H6: ='COMPONENTE 1 - OBRA'!K1812 -> 0
B7: 2 | C7: ADMINISTRACION | D7: % | E7: A | F7: ='COMPONENTE 1 - OBRA'!G1815 -> 15.36% | G7: =($F$6)*F7 -> COP 15,968,064,156 | H7: =($H$6)*F7 -> 0
B8: 3 | C8: IMPREVISTOS | D8: % | E8: I | F8: 2.00% | G8: =($F$6)*F8 -> COP 2,079,175,020 | H8: =($H$6)*F8 -> 0
B9: 4 | C9: UTILIDAD | D9: % | E9: U | F9: ='COMPONENTE 1 - OBRA'!G1816 -> 5.00% | G9: =($F$6)*F9 -> COP 5,197,937,551 | H9: =($H$6)*F9 -> 0
B10: 5 | C10: POLIZAS | D10: GL | E10: 1 | F10: COP 1,916,680,350
B11: 6 | C11: INVERSION AMBIENTAL, SOCIAL Y PMT | D11: GL | E11: 1 | F11: COP 600,000,000
B12: 7 | C12: REAJUSTES INDEXACIÓN (AJUSTE CAMBIO DE AÑOS) | D12: GL | E12: 1 | F12: COP 8,380,508,161
B13: 8 | C13: RESERVA DE GESTIÓN | D13: GL | E13: 1 | F13: COP 1,574,019,766
B14: TOTAL OBRA | F14: =F6+G7+G8+G9+F10+F11+F12+F13 -> COP 139,675,136,020 | H14: =SUM(H6:H13) -> 0
B16: No. ITEM | C16: DESCRIPCIÓN ARTÍCULO | D16: UNIDAD DE MEDIDA | E16: CANTIDAD | F16: VALOR UNITARIO TECHO INCLUIDO IVA | H16: VALOR UNITARIO OFERTADO INCLUIDO IVA
B17: 9 | C17: BMS | D17: GL | E17: 0 | F17: COP 1,406,514,773.39 | H17: ='COMPONENTE 1 - TECNOLOGIA'!F40 -> 0
B18: 10 | C18: Datacenter | D18: GL | E18: 1 | F18: COP 1,722,664,621.79 | H18: ='COMPONENTE 1 - TECNOLOGIA'!F52 -> 0
B19: 11 | C19: Red Lan | D19: GL | E19: 1 | F19: COP 3,615,307,527.51 | H19: ='COMPONENTE 1 - TECNOLOGIA'!F64 -> 0
B20: 12 | C20: Gabinetes | D20: GL | E20: 1 | F20: COP 2,200,575,329.61 | H20: ='COMPONENTE 1 - TECNOLOGIA'!F73 -> 0
B21: 13 | C21: Red Inalambrica | D21: GL | E21: 1 | F21: COP 1,735,484,410.37 | H21: ='COMPONENTE 1 - TECNOLOGIA'!F93 -> 0
B22: 14 | C22: VMS | D22: GL | E22: 1 | F22: COP 2,138,192,255.61 | H22: ='COMPONENTE 1 - TECNOLOGIA'!F121 -> 0
B23: 15 | C23: Switch | D23: GL | E23: 1 | F23: COP 14,224,480,322.49 | H23: ='COMPONENTE 1 - TECNOLOGIA'!F163 -> 0
B24: 16 | C24: CCTV | D24: GL | E24: 1 | F24: COP 1,509,027,134.45 | H24: ='COMPONENTE 1 - TECNOLOGIA'!F192 -> 0
B25: 17 | C25: EVAC | D25: GL | E25: 1 | F25: COP 2,683,379,571.04 | H25: ='COMPONENTE 1 - TECNOLOGIA'!F234 -> 0
B26: 18 | C26: Multimedia | D26: GL | E26: 0 | F26: COP 11,628,705,767.52 | H26: ='COMPONENTE 1 - TECNOLOGIA'!F287 -> 0
B27: 19 | C27: Acceso | D27: GL | E27: 1 | F27: COP 7,709,032,957.40 | H27: ='COMPONENTE 1 - TECNOLOGIA'!F319 -> 0
B28: 20 | C28: Instrusion | D28: GL | E28: 1 | F28: COP 478,013,573.51 | H28: ='COMPONENTE 1 - TECNOLOGIA'!F334 -> 0
B29: 21 | C29: Visitantes | D29: GL | E29: 0 | F29: COP 272,017,544.16 | H29: ='COMPONENTE 1 - TECNOLOGIA'!F345 -> 0
B30: 22 | C30: Telefonia | D30: GL | E30: 1 | F30: COP 682,646,759.15 | H30: ='COMPONENTE 1 - TECNOLOGIA'!F363 -> 0
B31: 23 | C31: Enlace_PTP | D31: GL | E31: 1 | F31: COP 258,668,247.33 | H31: ='COMPONENTE 1 - TECNOLOGIA'!F374 -> 0
B32: 24 | C32: VideoWall | D32: GL | E32: 0 | F32: COP 30,445,416,865.07 | H32: ='COMPONENTE 1 - TECNOLOGIA'!F424 -> 0
B33: 25 | C33: Enlace F.O | D33: GL | E33: 1 | F33: COP 947,528,726.62 | H33: ='COMPONENTE 1 - TECNOLOGIA'!F470 -> 0
B34: 26 | C34: Traslado videowall y controladora | D34: GL | E34: 1 | F34: COP 1,416,211,639.26 | H34: ='COMPONENTE 1 - TECNOLOGIA'!F479 -> 0
B35: TOTAL TECNOLOGIA | F35: =E17*F17+E18*F18+E19*F19+E20*F20+E21*F21+E22*F22+E23*F23+E24*F24+E25*F25+E26*F26+E27*F27+E28*F28+E29*F29+E30*F30+E31*F31+E32*F32+E33*F33+E34*F34 -> $ 41,321,213,076 | H35: =SUM(H17:H34) -> 0
B39: GRAN TOTAL | F39: =F35+F14 -> $ 180,996,349,096 | H39: =H35+H14 -> 0
B42: FIRMA DEL REPRESENTANTE LEGAL O APODERADO
B43: NOMBRE DEL PROPONENTE:
B44: NOMBRE DEL REPRESENTANTE LEGAL:
B45: DIRECCIÓN:
B46: CORREO ELECTRÓNICO:
B47: TELÉFONO:
C51: NOTAS ACLARATORIAS:
B52: 1 | C52: PÓLIZAS | D52: El pago de las pólizas estará sujeto a la presentación de la constancia de pago de la prima por parte del contratista, quien podrá solicitar a la ESU el reembolso de dicho valor mediante el acta de pago correspondiente que el mismo elabore y emita.
B53: 2 | C53: GESTIÓN AMBIENTAL, SOCIAL, SST Y PMT | D53: Se deberán presentar los planes correspondientes, debidamente aprobados por la interventoría y por las entidades externas competentes. Su pago se efectuará en el acta siguiente a la causación de la actividad respectiva contenida en los planes presentados por el contratista en cumplimiento de la normatividad vigente.
B54: 3 | C54: REAJUSTE POR CAMBIO DE AÑO | D54: El pago se ajustará en cada acta de pago, mediante la aplicación de la fórmula polinómica de reajuste definida para el proyecto, con base en los indicadores oficiales publicados por CAMACOL.
B55: 4 | C55: RESERVA DE GESTIÓN | D55: Los desembolsos de la reserva de gestión se realizarán con base en las aprobaciones emitidas por la interventoría y la supervisión de la ESU, atendiendo a las necesidades de ejecución que se presenten durante el desarrollo del proyecto.

Sheet COMPONENTE 1 - OBRA
C7: ANEXO No 19 PRECIOS Y CANTIDADES
A10: Especificaciones | B10: EDT | C10: Descripción | D10: Unidad | E10: Cantidad | F10: Costo unitario | G10: Total | I10: Cantidad | J10: Costo unitario | K10: Total | M10: CUMPLE | N10: NO CUMPLE
G11: =G32+G41+G66+G156+G174+G215+G255+G332+G596+G774+G856+G1401+G1622+G1632+G1639+G1645+G1683+G1759+G1792+G1805 -> $103,958,751,016.27
B12: 1.0.0 | C12: PRELIMINARES
B14: 1.1.0 | C14: REPLANTEO
A15: ESP 1.1.1 | B15: 1.1.1 | C15: LOCALIZACIÓN, TRAZADO Y REPLANTEO. Se utilizará personal experto con equipo de precisión (topógrafo, cadenero 1 y cadenero 2), incluye: clavo 1", larguero 2x2, tránsito, demarcación con pintura, línea de trazado, libretas, planos, seguridad social del personal, elemento epp y herramienta menor. Se hará con la frecuencia que lo indique la interventoría. | D15: día | E15: 60.00 | F15: $774,546.79 | G15: =F15*E15 -> $46,472,807.40 | I15: 60.00 | K15: =J15*I15 -> $0.00
C17: TOTAL DE REPLANTEO | G17: =SUM(G15) -> $46,472,807.40 | K17: =SUM(K15) -> $0.00
B19: 1.2.0 | C19: DESCAPOTE
A20: ESP 1.2.1 | B20: 1.2.1 | C20: DESCAPOTE A MÁQUINA. Incluye el desenraice si es necesario, cargue, transporte y botada de material sobrante en botaderos oficiales. Medición en sitio, retroexcavadora con operario combustible, seguridad social y elementos de EPP. | D20: m3 | E20: 450.00 | F20: $51,508.65 | G20: =F20*E20 -> $23,178,892.50 | I20: 450.00 | K20: =J20*I20 -> $0.00
C22: TOTAL DE DESCAPOTE | G22: =G20 -> $23,178,892.50 | K22: =K20 -> $0.00
B24: 1.3.0 | C24: INSTALACIONES PROVISIONALES
A25: ESP 1.3.1 | B25: 1.3.1 | C25: Construcción de Zona para baños, caspete provisionales, cárcamo para lavadero de volquetas y construcción de tanque de cilindros, incluye mampostería, teja de zinc, mortero, mesón en acero inoxidable, suministro de aparatos sanitarios, puertas, reja en malla eslabonada y los demás elementos necesarios para su correcto funcionamiento. | D25: m2 | E25: 18.00 | F25: $844,725.10 | G25: =F25*E25 -> $15,205,051.80 | I25: 18.00 | K25: =J25*I25 -> $0.00
A26: ESP 1.3.2 | B26: 1.3.2 | C26: Suministro e instalación eléctrica provisional, incluye subestación de 150 kva, incluye transformador, protecciones y medidas, extensión red media tensión aérea, tablero baja tensión para provisionales 500 a-220 v en poste, totalizador principal 500 a, tipo exterior. protección diferencial, lamina cr, instalación en poste tipo exterior, incluye compartimiento de medida, acometida baja tensión desde transformador hasta nuevo tablero 220 v 500 a en poste con seis cables de cobre calibre 250 mcm fase + 2 cables de cobre calibre 250 mcm neutro, instalaciones internas y todos los elementos necesarios para su correcto funcionamiento en zona provisional de obra. | D26: glo | E26: 1.00 | F26: $40,475,272.50 | G26: =F26*E26 -> $40,475,272.50 | I26: 1.00 | K26: =J26*I26 -> $0.00
A27: ESP 1.3.3 | B27: 1.3.3 | C27: Suministro e Instalación Hidráulica provisional, incluye tubería, accesorios (diámetros variables), excavación manual, cinta teflón, soldadura PVC, herramienta menor, tanques de 12000 lt, flanche para tanque, motobomba y elementos necesarios para su correcto funcionamiento. | D27: glo | E27: 1.00 | F27: $22,446,920.34 | G27: =F27*E27 -> $22,446,920.34 | I27: 1.00 | K27: =J27*I27 -> $0.00
A28: ESP 1.3.4 | B28: 1.3.4 | C28: Alquiler contenedores para campamento provisional 2 oficinas tipo oficinas. Incluye red eléctrica con tableros y tomas 110v y 220v, salidas eléctricas dobles y todo lo relacionado para su correcto funcionamiento. Incluye ventanerías, puertas, pisos, iluminación led, suministro y transporte. Aire acondicionado de 12.000 BTU a 220V | D28: días | E28: 540.00 | F28: $152,367.60 | G28: =F28*E28 -> $82,278,504.00 | I28: 540.00 | K28: =J28*I28 -> $0.00
C30: TOTAL DE INSTALACIONES PROVISIONALES | G30: =SUM(G25:G29) -> $160,405,748.64 | K30: =SUM(K25:K29) -> $0.00
B32: 1.0.0 | C32: TOTAL DE PRELIMINARES | G32: =SUM(G30+G22)+G17 -> $230,057,448.54 | K32: =SUM(K30+K22)+K17 -> $0.00
B34: 2.0.0 | C34: DEMOLICIONES
B36: 2.1.0 | C36: DEMOLICIONES
A37: ESP 2.1.1 | B37: 2.1.1 | C37: DEMOLICIÓN DE ÁREA CONSTRUIDA EN CUALQUIER MATERIAL con predominio en materiales de bloque, ladrillo, concreto de vigas, columnas, losas en concreto, cubierta en cualquier material. Incluye también el cargue mecánico o manual, transporte interno y externo y disposición final a botaderos oficiales. La demolición se realizará del área, por cada nivel intervenido incluye la demolición de losa de piso y cubierta. Además la recuperación de los materiales aprovechables son de la entidad contratante, se desmontan y entregan en un acopio dentro de la obra o cargados en los vehículos que se dispongan para su transporte. Incluye la conformación con escombros de la vía interna, el transporte y suministros de 2 retroexcavadoras y demás equipos necesarios para el desmonte, Seguridad Social y capacitaciones al Sistema de Gestión de Seguridad y Salud en el trabajo a los contratistas, todos los EPP certificados según la actividad. Así mismo el acompañamiento permanente en obra de un tecnólogo SST, que es también el Coordinador de trabajos en altura, Se dispone de personal capacitado para auxiliar de tránsito para el tráfico de volquetas, . Gestionamos ante las entidades autorizadas la certificación de los botaderos de todos los viajes de escombros que resulten en la obra. El contrato incluye la expedición de pólizas de Cumplimiento, Responsabilidad Civil y Prestaciones Sociales, por parte de una compañía de seguros para garantizar la seguridad y buen término de la obra. La demolición se ejecutará en 30 días. | D37: m2 | E37: 2,781.14 | F37: $42,186.48 | G37: =F37*E37 -> $117,326,358.19 | I37: 2,781.14 | K37: =J37*I37 -> $0.00
C39: TOTAL DE DEMOLICIONES | G39: =G37 -> $117,326,358.19 | K39: =K37 -> $0.00
B41: 2.0.0 | C41: TOTAL DE DEMOLICIONES | G41: =G39 -> $117,326,358.19 | K41: =K39 -> $0.00
B43: 3.0.0 | C43: MOVIMIENTOS DE TIERRA
B45: 3.1.0 | C45: EXCAVACIÓN Y RETIRO DE MATERIAL
A46: ESP 3.1.1 | B46: 3.1.1 | C46: EXCAVACIÓN MECÁNICA de material heterogéneo DE 0-3 m (Sobre ancho 60 CM), bajo cualquier grado de humedad. Incluye: roca descompuesta, bolas de roca de volúmen inferior a 0.35 m³, el cargue, transporte interno y externo y botada de material proveniente de las excavaciones en los sitios donde lo indique la interventoría y su medida será en el sitio. No incluye entibado. | D46: m3 | E46: 1,158.00 | F46: $53,829.81 | G46: =F46*E46 -> $62,334,919.98 | I46: 1,158.00 | K46: =J46*I46 -> $0.00
A47: ESP 3.1.2 | B47: 3.1.2 | C47: EXCAVACIÓN PARA CAMPANAS EN PILAS, de 14.0 a 16.0 m de profundidad, en material heterogéneo, con piedras de hasta 0.05 m³. Incluye pozo piloto de bombeo, molinete, motobomba, extracción del material de la pila y acarreo interno de materiales y cargue, transporte y botada del material proveniente de la excavación en botaderos oficiales o donde lo indique la interventoría y todo lo necesario para su correcta construcción. SU MEDIDA SERA EN SITIO. | D47: m3 | E47: 91.30 | F47: $612,041.82 | G47: $55,879,418.17 | I47: 91.30 | K47: $0.00
A48: ESP 3.1.3 | B48: 3.1.3 | C48: EXCAVACIÓN MANUAL PARA PILAS DE 0,0 a 2,0 m de profundidad con DIÁMETRO EXTERIOR DE 1,40 m, en material heterogéneo, con piedras de hasta 0.05 m³. Incluye pozo piloto de bombeo, formaleta en madera común, molinete, motobomba, extracción del material de la pila y acarreo interno de materiales, cargue, transporte y botada del material proveniente de la excavación en botaderos oficiales o donde lo indique la interventoría y todo lo necesario para su correcta construcción. Su medida sera en sitio. No incluye anillo. | D48: m3 | E48: 189.00 | F48: $200,731.95 | G48: $37,938,338.55 | I48: 189.00 | K48: $0.00
A49: ESP 3.1.4 | B49: 3.1.4 | C49: EXCAVACIÓN MANUAL PARA PILAS DE 2,0 a 4,0 m de profundidad con DIÁMETRO EXTERIOR DE 1,40 m, en material heterogéneo, con piedras de hasta 0.05 m³. Incluye pozo piloto de bombeo, formaleta en madera común, molinete, motobomba, extracción del material de la pila y acarreo interno de materiales, cargue, transporte y botada del material proveniente de la excavación en botaderos oficiales o donde lo indique la interventoría y todo lo necesario para su correcta construcción. SU MEDIDA SERA EN SITIO. No incluye anillo. | D49: m3 | E49: 189.00 | F49: $247,475.21 | G49: $46,772,814.69 | I49: 189.00 | K49: $0.00
A50: ESP 3.1.5 | B50: 3.1.5 | C50: EXCAVACIÓN MANUAL PARA PILAS DE 4,0 a 6,0 m de profundidad con DIÁMETRO EXTERIOR DE 1,40 m, en material heterogéneo, con piedras de hasta 0.05 m³. Incluye pozo piloto de bombeo, formaleta en madera común, molinete, motobomba, extracción del material de la pila y acarreo interno de materiales, cargue, transporte y botada del material proveniente de la excavación en botaderos oficiales o donde lo indique la interventoría y todo lo necesario para su correcta construcción. SU MEDIDA SERA EN SITIO. No incluye anillo. | D50: m3 | E50: 189.00 | F50: $292,583.16 | G50: $55,298,217.24 | I50: 189.00 | K50: $0.00
A51: ESP 3.1.6 | B51: 3.1.6 | C51: EXCAVACIÓN MANUAL PARA PILAS DE 6,0 a 8,0 m de profundidad con DIÁMETRO EXTERIOR DE 1,40 m, en material heterogéneo, con piedras de hasta 0.05 m³. Incluye pozo piloto de bombeo, formaleta en madera común, molinete, motobomba, extracción del material de la pila y acarreo interno de materiales, cargue, transporte y botada del material proveniente de la excavación en botaderos oficiales o donde lo indique la interventoría y todo lo necesario para su correcta construcción. SU MEDIDA SERA EN SITIO. No incluye anillo. | D51: m3 | E51: 189.00 | F51: $326,386.10 | G51: $61,686,972.90 | I51: 189.00 | K51: $0.00
A52: ESP 3.1.7 | B52: 3.1.7 | C52: EXCAVACIÓN MANUAL PARA PILAS DE 8,0 a 10,0 m de profundidad con DIÁMETRO EXTERIOR DE 1,40 m, en material heterogéneo, con piedras de hasta 0.05 m³. Incluye pozo piloto de bombeo, formaleta en madera común, molinete, motobomba, extracción del material de la pila y acarreo interno de materiales, cargue, transporte y botada del material proveniente de la excavación en botaderos oficiales o donde lo indique la interventoría y todo lo necesario para su correcta construcción. SU MEDIDA SERA EN SITIO. No incluye anillo. | D52: m3 | E52: 189.00 | F52: $375,820.70 | G52: $71,030,112.30 | I52: 189.00 | K52: $0.00
A53: ESP 3.1.8 | B53: 3.1.8 | C53: EXCAVACIÓN MANUAL PARA PILAS DE 10,0 a 12,0 m de profundidad con DIÁMETRO EXTERIOR DE 1,40 m, en material heterogéneo, con piedras de hasta 0.05 m³. Incluye pozo piloto de bombeo, formaleta en madera común, molinete, motobomba, extracción del material de la pila y acarreo interno de materiales, cargue, transporte y botada del material proveniente de la excavación en botaderos oficiales o donde lo indique la interventoría y todo lo necesario para su correcta construcción. SU MEDIDA SERA EN SITIO. No incluye anillo. | D53: m3 | E53: 189.00 | F53: $414,567.09 | G53: $78,353,180.01 | I53: 189.00 | K53: $0.00
A54: ESP 3.1.9 | B54: 3.1.9 | C54: EXCAVACIÓN MANUAL PARA PILAS DE 12,0 a 14,0 m de profundidad con DIÁMETRO EXTERIOR DE 1,40 m, en material heterogéneo, con piedras de hasta 0.05 m³. Incluye pozo piloto de bombeo, formaleta en madera común, molinete, motobomba, extracción del material de la pila y acarreo interno de materiales, cargue, transporte y botada del material proveniente de la excavación en botaderos oficiales o donde lo indique la interventoría y todo lo necesario para su correcta construcción. SU MEDIDA SERA EN SITIO. No incluye anillo. | D54: m3 | E54: 56.30 | F54: $466,496.05 | G54: $26,263,727.62 | I54: 56.30 | K54: $0.00
A55: ESP 3.1.10 | B55: 3.1.10 | C55: EXCAVACIÓN MANUAL PARA PILAS DE 14,0 a 16,0 m de profundidad con DIÁMETRO EXTERIOR DE 1,40 m, en material heterogéneo, con piedras de hasta 0.05 m³. Incluye pozo piloto de bombeo, formaleta en madera común, molinete, motobomba, extracción del material de la pila y acarreo interno de materiales, cargue, transporte y botada del material proveniente de la excavación en botaderos oficiales o donde lo indique la interventoría y todo lo necesario para su correcta construcción. SU MEDIDA SERA EN SITIO. No incluye anillo. | D55: m3 | E55: 56.30 | F55: $551,381.41 | G55: $31,042,773.38 | I55: 56.30 | K55: $0.00
C57: TOTAL DE EXCAVACIÓN Y RETIRO DE MATERIAL | G57: =SUM(G46:G55) -> $526,600,474.83 | K57: =SUM(K46:K55) -> $0.00
B59: 3.2.0 | C59: LLENOS
A60: ESP 3.2.1 | B60: 3.2.1 | C60: Suministro, transporte y colocación de base granular de máximo Ø 1½", reacomodado con medios MANUALES y compactado al 100% mínimo del ensayo del proctor modificado, según normas para la construcción de pavimentos del INVIAS, y todo lo necesario para su correcto funcionamiento. Su medida será tomada en sitio ya compactado. Incluye acarreo interno, el equipo compactador + operario + combustible y la cuadrilla. La compactación debe ser máximo en capas de 20cm de espesor. | D60: m3 | E60: 1,027.00 | F60: $206,853.52 | G60: =F60*E60 -> $212,438,565.04 | I60: 1,027.00 | K60: =J60*I60 -> $0.00
A61: ESP 3.2.2 | B61: 3.2.2 | C61: Llenos en arenilla, compactados mecánicamente hasta obtener una densidad del 98% de la máxima obtenida en el ensayo del Proctor modificado. Incluye el suministro, transporte, colocación de la arenilla, la compactación de la misma y transporte interno. Y su medida sera en sitio ya compactado. El lleno debe extenderse en capas horizontales y espesor uniforme de tal forma que permita obtener el grado de compactación adecuado. | D61: m3 | E61: 160.00 | F61: $85,308.45 | G61: =F61*E61 -> $13,649,352.00 | I61: 160.00 | K61: =J61*I61 -> $0.00
A62: ESP 3.2.3 | B62: 3.2.3 | C62: Llenos en material provenientes de la excavación, compactados mecánicamente hasta obtener una densidad del 95% de la máxima obtenida en el ensayo del Proctor modificado. Incluye transporte interno. Su medida sera en sitio ya compactado. | D62: m3 | E62: 240.00 | F62: $28,062.99 | G62: =F62*E62 -> $6,735,117.60 | I62: 240.00 | K62: =J62*I62 -> $0.00
C64: TOTAL DE LLENOS | G64: =SUM(G60:G62) -> $232,823,034.64 | K64: =SUM(K60:K62) -> $0.00
B66: 3.0.0 | C66: TOTAL DE MOVIMIENTOS DE TIERRA | G66: =G64+G57 -> $759,423,509.47 | K66: =K64+K57 -> $0.00
B68: 4.0.0 | C68: CONCRETOS
B70: 4.1.0 | C70: SUBESTRUCTURA
B72: 4.1.1 | C72: FUNDACIONES
A73: ESP 4.1.1.1 | B73: 4.1.1.1 | C73: Construcción de VIGA DE FUNDACIÓN en concreto de 28 Mpa (4000 PSI) DE 60X60. Incluye el suministro y transporte del concreto, mano de obra, protección y curado, acarreo interno, alquiler de bomba y los materiales necesarios para su correcta función. No incluye refuerzo ni excavación, los mismos se pagarán en sus respectivos ítems. | D73: m3 | E73: 224.68 | F73: $951,963.79 | G73: =F73*E73 -> $213,887,224.34 | I73: 224.68 | K73: =J73*I73 -> $0.00
A74: ESP 4.1.1.2 | B74: 4.1.1.2 | C74: Construcción de VIGA DE FUNDACIÓN en concreto de 28 Mpa (4000 PSI) DE 40X60. Incluye el suministro y transporte del concreto, mano de obra, protección y curado y los materiales necesarios para su correcta función. No incluye refuerzo ni excavación, los mismos se pagarán en sus respectivos ítems. | D74: m3 | E74: 65.69 | F74: $920,020.70 | G74: $60,436,159.78 | I74: 65.69 | K74: $0.00
A75: ESP 4.1.1.3 | B75: 4.1.1.3 | C75: Construcción de VIGA DE FUNDACIÓN en concreto de 28 Mpa (4000 PSI) DE 80X60. Incluye el suministro y transporte del concreto, mano de obra, protección y curado y los materiales necesarios para su correcta función. No incluye refuerzo ni excavación, los mismos se pagarán en sus respectivos ítems. | D75: m3 | E75: 4.80 | F75: $986,690.10 | G75: $4,736,112.48 | I75: 4.80 | K75: $0.00
A76: ESP 4.1.1.4 | B76: 4.1.1.4 | C76: Construcción de DADOS DE FUNDACIÓN O CABEZOTES en concreto de 42 Mpa (6000 PSI). Incluye el suministro y transporte del concreto, mano de obra, protección y curado y los materiales necesarios para su correcta función. No incluye refuerzo ni excavación, los mismos se pagarán en sus respectivos ítems. | D76: m3 | E76: 43.41 | F76: $1,161,631.06 | G76: $50,426,404.31 | I76: 43.41 | K76: $0.00
A77: ESP 4.1.1.5 | B77: 4.1.1.5 | C77: Construcción de PILAS en concreto de 28 Mpa (4000 PSI) premezclado. Incluye el suministro, transporte y vaciado del concreto, mano de obra, protección, tabla de 1.70x0.20, clavo 1" y alquiler de bomba y los demás elementos necesarios para su correcto funcionamiento. No incluye refuerzo ni excavación, los mismos se pagarán en sus respectivos ítems. | D77: m3 | E77: 710.00 | F77: $890,720.55 | G77: $632,411,590.50 | I77: 710.00 | K77: $0.00
A78: ESP 4.1.1.6 | B78: 4.1.1.6 | C78: Colocación de concreto de 10.5 Mpa para SOLADO, con un espesor de 0.05 m. Incluye el suministro y el transporte del concreto, acarreo interno y todos los demás elementos necesarios para su correcta construcción. | D78: m2 | E78: 385.03 | F78: $25,081.30 | G78: $9,657,136.54 | I78: 385.03 | K78: $0.00
A79: ESP 4.1.1.7 | B79: 4.1.1.7 | C79: Construcción de LOSA DE CONTRAPISO en Concreto premezclado 21 Mpa (3000 PSI) con e=13 cm. Incluye suministro, transporte e instalación del concreto, mano de obra, vibrado, protección y curado, pulida de piso de concreto con allanadora (1026.07m2) y todos los materiales necesarios para su correcto funcionamiento. No incluye refuerzo, ni lleno. NOTA: En estas cantidades se encuentra incluido el vaciado de placa de losa de contrapiso del foso de ascensor. | D79: m2 | E79: 2,503.39 | F79: $217,015.34 | G79: $543,274,032.00 | I79: 2,503.39 | K79: $0.00
A80: ESP 4.1.1.8 | B80: 4.1.1.8 | C80: Construcción de CAMPANAS DE PILAS en Concreto premezclado 28 Mpa (4000 PSI). Incluye suministro, transporte e instalación del concreto, mano de obra, vibrado, protección y curado y todos los materiales necesarios para su correcto funcionamiento. No incluye refuerzo ni excavación, los mismos se pagarán en sus respectivos ítems. | D80: m3 | E80: 169.50 | F80: $948,927.02 | G80: $160,843,129.89 | I80: 169.50 | K80: $0.00
A81: ESP 4.1.1.9 | B81: 4.1.1.9 | C81: Armado y vaciado de ANILLO DE PILAS de diámetro 1.40, incluye Concreto de 17.5 Mpa preparado en obra, herramienta menor y todos los elementos necesarios para su correcta ejecución. No incluye refuerzo ni excavación, los mismos se pagarán en sus respectivos ítems. | D81: m | E81: 569.20 | F81: $343,713.90 | G81: $195,641,951.88 | I81: 569.20 | K81: $0.00
A82: ESP 4.1.1.10 | B82: 4.1.1.10 | C82: Construcción de ZAPATA PARA RAMPA EN CONCRETO PREMEZCLADO DE 28 MPA (4000 PSI). Incluye suministro, transporte y vaciado del concreto, vibrado, desmoldante, antisol, formaleta y todo lo necesario para su correcta construcción. No incluye excavación ni acero de refuerzo, los mismos se pagarán en sus respectivo ítems | D82: m3 | E82: 2.88 | F82: $946,985.66 | G82: $2,727,318.70 | I82: 2.88 | K82: $0.00
A83: ESP 4.1.1.11 | B83: 4.1.1.11 | C83: Construcción de PILOTE EN CONCRETO REFORZADO DE 28 MPA CON DIÁMETRO 30cm. Concreto premezclado . Incluye suministro, transporte y vaciado del concreto, excavación mecánica y todo lo necesario para su correcta construcción. No incluye acero de refuerzo, el mismos se pagará en su respectivo ítem | D83: m | E83: 260.00 | F83: $462,286.59 | G83: $120,194,512.76 | I83: 260.00 | K83: $0.00
A84: ESP 4.1.1.12 | B84: 4.1.1.12 | C84: Construcción de talud a 45° mediante tratamiento de una capa de mortero 1:4, de esp 5cm de espesor total, incluye malla electrosoldada tipo D84, tubería PVC 2" para oídos, geotextil NT2400, sika 1, larguero de madera comun de 1" y los materiales necesarios para su correcto funcionamiento. | D84: m2 | E84: 195.27 | F84: $149,243.52 | G84: $29,142,782.52 | I84: 195.27 | K84: $0.00
C86: TOTAL DE FUNDACIONES | G86: =SUM(G73:G84) -> $2,023,378,355.71 | K86: =SUM(K73:K84) -> $0.00
C88: TOTAL DE SUBESTRUCTURA | G88: =G86 -> $2,023,378,355.71 | K88: =K86 -> $0.00
B90: 4.2.0 | C90: ESTRUCTURA
B92: 4.2.1 | C92: LOSAS
A93: ESP 4.2.1.1 | B93: 4.2.1.1 | C93: Construcción de LOSAS AÉREAS en concreto de 35 Mpa (5000 psi). con un Esp 12.5 cm. Incluye suministro, transporte y colocación del concreto, mano de obra, vibrado, protección, formaleta y curado y todos los materiales necesarios para su correcto funcionamiento. No incluye refuerzo. | D93: m2 | E93: 16,162.91 | F93: $261,125.61 | G93: =F93*E93 -> $4,220,549,733.13 | I93: 16,162.91 | K93: =J93*I93 -> $0.00
C95: TOTAL DE LOSAS | G95: =G93 -> $4,220,549,733.13 | K95: =K93 -> $0.00
B97: 4.2.3 | C97: COLUMNAS
A98: ESP 4.2.3.1 | B98: 4.2.3.1 | C98: Construcción de COLUMNAS DE secciones 0.80x0.50 m de resistencias según diseño estructural ( 42 Mpa 6000 PSI) , acabado a la vista. Incluye suministro, transporte y colocación del concreto, formaleta en súper "T" de 19 mm., aristas biseladas, desmoldante, para mezclas de concreto, vibrado, protección, curado y todos los demás elementos necesarios para su correcta construcción según diseño. El acero de refuerzo se pagará en su respectivo ítem. | D98: m | E98: 11.60 | F98: $597,639.38 | G98: =F98*E98 -> $6,932,616.81 | I98: 11.60 | K98: =J98*I98 -> $0.00
A99: ESP 4.2.3.2 | B99: 4.2.3.2 | C99: Construcción de COLUMNAS DE secciones 0.80 x0.80m. de resistencias según diseño estructural (35 MPa o 5000 PSI y 42m Pao 6000 PSI) , acabado a la vista. Incluye suministro, transporte y colocación del concreto, formaleta en súper "T" de 19 mm., aristas biseladas, desmoldante, para mezclas de concreto, vibrado, protección, curado y todos los demás elementos necesarios para su correcta construcción según diseño. El acero de refuerzo se pagará en su respectivo ítem. | D99: m | E99: 816.20 | F99: $760,323.32 | G99: =F99*E99 -> $620,575,893.78 | I99: 816.20 | K99: =J99*I99 -> $0.00
C101: TOTAL DE COLUMNAS | G101: =G98+G99 -> $627,508,510.59 | K101: =K98+K99 -> $0.00
B103: 4.2.4 | C103: VIGAS AEREAS
A104: ESP 4.2.4.1 | B104: 4.2.4.1 | C104: Construcción de VIGAS AÉREAS de 0,2 x 0,6 m. en concreto de 35 Mpa, hasta una altura variable desde el nivel de apoyo de la obra falsa hasta el nivel inferior de la viga. Incluye suministro, transporte y colocación del concreto, formaleta de primera calidad en súper T de 19 mm o equivalente, para acabado a la vista, aristas biseladas, suministro, transporte, armado y desarmado de la obra falsa requerida, vibrado, protección, curado y todos los demás elementos necesarios para su correcta construcción. El acero de refuerzo se pagará en su respectivo ítem según diseño y especificaciones establecidos en los planos. En el vaciado se deben dejar los hierros para el amarre de los elementos no estructurales que se requieran, por ningún motivo se pagarán anclajes. NOTA: en estas cantidades se encuentran incluidas las vigas del foso de ascensor, tienen las mismas dimensiones. | D104: m | E104: 4,554.19 | F104: $270,531.26 | G104: =F104*E104 -> $1,232,050,758.98 | I104: 4,554.19 | K104: =J104*I104 -> $0.00
A105: ESP 4.2.4.2 | B105: 4.2.4.2 | C105: Construcción de VIGAS AÉREAS de 0,3 x 0,8 m. en concreto de 35 Mpa, hasta una altura variable desde el nivel de apoyo de la obra falsa hasta el nivel inferior de la viga. Incluye suministro, transporte y colocación del concreto, formaleta de primera calidad en súper T de 19 mm o equivalente, para acabado a la vista, aristas biseladas, suministro, transporte, armado y desarmado de la obra falsa requerida, vibrado, protección, curado y todos los demás elementos necesarios para su correcta construcción. El acero de refuerzo se pagará en su respectivo ítem según diseño y especificaciones establecidos en los planos. En el vaciado se deben dejar los hierros para el amarre de los elementos no estructurales que se requieran, por ningún motivo se pagarán anclajes. | D105: m | E105: 847.30 | F105: $374,520.19 | G105: =F105*E105 -> $317,330,956.99 | I105: 847.30 | K105: =J105*I105 -> $0.00
A106: ESP 4.2.4.3 | B106: 4.2.4.3 | C106: Construcción de VIGAS AÉREAS de 0,5 x 0,8 m. en concreto de 35 Mpa, hasta una altura variable desde el nivel de apoyo de la obra falsa hasta el nivel inferior de la viga. Incluye suministro, transporte y colocación del concreto, formaleta de primera calidad en súper T de 19 mm o equivalente, para acabado a la vista, aristas biseladas, suministro, transporte, armado y desarmado de la obra falsa requerida, vibrado, protección, curado y todos los demás elementos necesarios para su correcta construcción. El acero de refuerzo se pagará en su respectivo ítem según diseño y especificaciones establecidos en los planos. En el vaciado se deben dejar los hierros para el amarre de los elementos no estructurales que se requieran, por ningún motivo se pagarán anclajes. NOTA: en estas cantidades se encuentran incluida la viga cajón, tienen las mismas dimensiones. | D106: m | E106: 3,346.57 | F106: $505,786.80 | G106: =F106*E106 -> $1,692,650,931.28 | I106: 3,346.57 | K106: =J106*I106 -> $0.00
A107: ESP 4.2.4.4 | B107: 4.2.4.4 | C107: Construcción de VIGAS AÉREAS de 0,4 x 0,8 m. en concreto de 35 Mpa, con una altura variable desde el nivel de apoyo de la obra falsa hasta el nivel inferior de la viga. Incluye suministro, transporte y colocación del concreto, formaleta de primera calidad en súper T de 19 mm o equivalente, para acabado a la vista, aristas biseladas, suministro, transporte, armado y desarmado de la obra falsa requerida, vibrado, protección, curado y todos los demás elementos necesarios para su correcta construcción. El acero de refuerzo se pagará en su respectivo ítem según diseño y especificaciones establecidos en los planos. En el vaciado se deben dejar los hierros para el amarre de los elementos no estructurales que se requieran, por ningún motivo se pagarán anclajes. | D107: m | E107: 435.10 | F107: $443,069.40 | G107: =F107*E107 -> $192,779,495.94 | I107: 435.10 | K107: =J107*I107 -> $0.00
C109: TOTAL DE VIGAS AÉREAS | G109: =SUM(G104:G107) -> $3,434,812,143.18 | K109: =SUM(K104:K107) -> $0.00
B111: 4.2.5 | C111: ESCALERAS/GRADERÍAS
A112: ESP 4.2.5.1 | B112: 4.2.5.1 | C112: Construcción de ESCALERAS en concreto premezclado de 21 Mpa., con huella de 0.28 hasta 0.30 m y contrahuella de 0.15 hasta 0.17 m. Incluye suministro, transporte y la colocación del concreto, formaleta de primera calidad en súper "T" de 19 mm. o su equivalente para acabado a la vista, contrahuellas, moldura chaflán en contrahuellas, vibrado, protección, curado, y todos los demás elementos necesarios para su correcta construcción, según diseño. | D112: tramo | E112: 14.00 | F112: $9,128,259.18 | G112: =F112*E112 -> $127,795,628.5 | I112: 14.00 | K112: =J112*I112 -> $0.0
C114: TOTAL DE ESCALERAS/GRADERÍAS | G114: =G112 -> $127,795,628.55 | K114: =K112 -> $0.00
B116: 4.2.6 | C116: RAMPAS
A117: ESP 4.2.6.1 | B117: 4.2.6.1 | C117: Construcción de RAMPAS en concreto de 28 Mpa (4000 PSI), de 12,5 cm, Incluye suministro, transporte y colocación del concreto, mano de obra, vibrado, protección, formaleta y curado y todos los materiales necesarios para su correcto funcionamiento. No incluye refuerzo. | D117: m2 | E117: 147.70 | F117: $259,841.90 | G117: =F117*E117 -> $38,378,648.63 | I117: 147.70 | K117: =J117*I117 -> $0.00
A118: ESP 4.2.6.2 | B118: 4.2.6.2 | C118: Construcción de VIGAS AÉREAS DE RAMPA de 0,5 x 0,7 m. en concreto de 28 Mpa, hasta una altura variable desde el nivel de apoyo de la obra falsa hasta el nivel inferior de la viga. Incluye suministro, transporte y colocación del concreto, formaleta de primera calidad en súper T de 19 mm o equivalente, para acabado a la vista, aristas biseladas, suministro, transporte, armado y desarmado de la obra falsa requerida, vibrado, protección, curado y todos los demás elementos necesarios para su correcta construcción. El acero de refuerzo se pagará en su respectivo ítem según diseño y especificaciones establecidos en los planos. | D118: m | E118: 39.90 | F118: $445,293.47 | G118: =F118*E118 -> $17,767,209.45 | I118: 39.90 | K118: =J118*I118 -> $0.00
A119: ESP 4.2.6.3 | B119: 4.2.6.3 | C119: Construcción de VIGAS AÉREAS DE RAMPA de 0,4 x 0,2 m. en concreto de 28 Mpa, hasta una altura variable desde el nivel de apoyo de la obra falsa hasta el nivel inferior de la viga. Incluye suministro, transporte y colocación del concreto, formaleta de primera calidad en súper T de 19 mm o equivalente, para acabado a la vista, aristas biseladas, suministro, transporte, armado y desarmado de la obra falsa requerida, vibrado, protección, curado y todos los demás elementos necesarios para su correcta construcción. El acero de refuerzo se pagará en su respectivo ítem según diseño y especificaciones establecidos en los planos. | D119: m | E119: 19.66 | F119: $241,173.58 | G119: =F119*E119 -> $4,741,472.58 | I119: 19.66 | K119: =J119*I119 -> $0.00
C121: TOTAL DE RAMPAS | G121: =SUM(G117:G119) -> $60,887,330.67 | K121: =SUM(K117:K119) -> $0.00
B123: 4.2.7 | C123: TANQUES
A124: ESP 4.2.7.1 | B124: 4.2.7.1 | C124: Construcción de LOSA DE CONTRAPISO de tanque en Concreto premezclado 28 Mpa (4000 PSI) con e=50 cm, Incluye suministro, transporte e instalación del concreto, mano de obra, vibrado, protección y curado y todos los materiales necesarios para su correcto funcionamiento. No incluye refuerzo. Será pagado en su respectivo ítem. | D124: m2 | E124: 217.01 | F124: $600,665.86 | G124: =F124*E124 -> $130,347,494.95 | I124: 217.01 | K124: =J124*I124 -> $0.00
A125: ESP 4.2.7.2 | B125: 4.2.7.2 | C125: Construcción de MURO DE CONTENCIÓN en concreto premezclado de 28 MPa (4000 psi), esp. 0,30m, con una altura total máxima de 2.30m. Incluye desmoldante, vibrador de concreto, y todo lo necesario para su correcta construcción. No incluye acero de refuerzo, el mismo se pagará en su respectivo ítem. | D125: m2 | E125: 115.20 | F125: $384,670.56 | G125: =F125*E125 -> $44,314,048.51 | I125: 115.20 | K125: =J125*I125 -> $0.00
A126: ESP 4.2.7.3 | B126: 4.2.7.3 | C126: Construcción de MURO DIVISORIOS DE TANQUE en concreto premezclado de 28 MPa (4000 psi) esp. 0,30m, con una altura total máxima de 2.30m. Incluye desmoldante, vibrador de concreto, y todo lo necesario para su correcta construcción. No incluye acero de refuerzo, el mismo se pagará en su respectivo ítem. | D126: m2 | E126: 43.20 | F126: $384,670.56 | G126: =F126*E126 -> $16,617,768.19 | I126: 43.20 | K126: =J126*I126 -> $0.00
A127: ESP 4.2.7.4 | B127: 4.2.7.4 | C127: Construcción de LOSAS AÉREAS en concreto de 28 Mpa (4000 psi). con un Esp 20 cm PARA TANQUE. Incluye suministro, transporte y colocación del concreto, mano de obra, vibrado, protección, formaleta y curado y todos los materiales necesarios para su correcto funcionamiento. No incluye refuerzo. | D127: m2 | E127: 217.01 | F127: $304,086.75 | G127: =F127*E127 -> $65,988,345.81 | I127: 217.01 | K127: =J127*I127 -> $0.00
C129: TOTAL DE TANQUES | G129: =SUM(G124:G127) -> $257,267,657.46 | K129: =SUM(K124:K127) -> $0.00
B131: 4.2.8 | C131: MUROS EN CONCRETO
A132: ESP 4.2.8.1 | B132: 4.2.8.1 | C132: Suministro, transporte y colocación de concreto para MURO PANTALLA de dimensiones .4x6m, con resistencias de 42 Mpa(6000 psi) y 35 MPa(5000 psi), incluye formaleta SÚPER T para acabado a la vista ambas caras, vibrado, reductor de agua tipo Sika o similar, acelerante para concretos tipo Sika o similar, desencofrante tipo Sika o similar, transporte externo e interno y colocación de la formaleta en su sitio de acuerdo a los hilos, medidas y trazos indicados en los planos, lo mismo que el suministro, transporte externo e interno y colocación dentro del molde por medios manuales o mecánicos, del concreto necesario, en las características, secciones y especificaciones indicadas en los planos estructurales de la obra. El contratista debe suministrar también todos los elementos necesarios para asegurar la formaleta en su sitio, tales como tacos, parales, pasadores, tensores, corbatas, etc., que se requiera. Deberá también dar el curado necesario y retirar las formaletas cuando el concreto haya alcanzado su curado inicial. La interventoría indicará dónde y cuándo deben hacerse reparaciones u ordenar la demolición y reposición, por cuenta del contratista, del elemento cuando este lo considere necesario. El acero de refuerzo está incluido en su ítem respectivo. | D132: m2 | E132: 540.50 | F132: $469,732.90 | G132: =F132*E132 -> $253,890,632.45 | I132: 540.50 | K132: =J132*I132 -> $0.00
A133: ESP 4.2.8.2 | B133: 4.2.8.2 | C133: Suministro, transporte y colocación de concreto para MURO PANTALLA de dimensiones .8x1.60m, de resistencias de 42 Mpa(6000 psi) y 35 Mpa(5000 psi), incluye formaleta SÚPER T para acabado a la vista ambas caras, vibrado, reductor de agua tipo Sika o similar, acelerante para concretos tipo Sika o similar, desencofrante tipo Sika o similar, transporte externo e interno y colocación de la formaleta en su sitio de acuerdo a los hilos, medidas y trazos indicados en los planos, lo mismo que el suministro, transporte externo e interno y colocación dentro del molde por medios manuales o mecánicos, del concreto necesario, en las características, secciones y especificaciones indicadas en los planos estructurales de la obra. El contratista debe suministrar también todos los elementos necesarios para asegurar la formaleta en su sitio, tales como tacos, parales, pasadores, tensores, corbatas, etc., que se requiera. Deberá también dar el curado necesario y retirar las formaletas cuando el concreto haya alcanzado su curado inicial. La interventoría indicará dónde y cuándo deben hacerse reparaciones u ordenar la demolición y reposición, por cuenta del contratista, del elemento cuando este lo considere necesario. El acero de refuerzo está incluido en su ítem respectivo. | D133: m2 | E133: 301.12 | F133: $825,169.00 | G133: $248,474,889.28 | I133: 301.12 | K133: $0.00
A134: ESP 4.2.8.3 | B134: 4.2.8.3 | C134: Suministro, transporte y colocación de concreto de 21 Mpa(3000 psi), para muro espesor 20 cm, incluye formaleta SÚPER T para acabado a la vista ambas caras, vibrado, reductor de agua tipo Sika o similar, desencofrante tipo Sika o similar, transporte externo e interno y colocación de la formaleta en su sitio de acuerdo a los hilos, medidas y trazos indicados en los planos, lo mismo que el suministro, transporte externo e interno y colocación dentro del molde por medios manuales o mecánicos, del concreto necesario, en las características, secciones y especificaciones indicadas en los planos estructurales de la obra. se deberá también dar el curado necesario y retirar las formaletas cuando el concreto haya alcanzado su curado inicial. El acero de refuerzo está incluido en su ítem respectivo al igual que la formaleta. NOTA: los muros no estructurales se conciben en concreto reforzado. Las cantidades de los muros del foso de ascensor están incluidas dentro de este ítem. | D134: m2 | E134: 1,103.40 | F134: $303,400.91 | G134: $334,772,564.09 | I134: 1,103.40 | K134: $0.00
A135: ESP 4.2.8.4 | B135: 4.2.8.4 | C135: Suministro, transporte y colocación de concreto de 21 Mpa(3000 psi), para muro espesor 15 cm, incluye formaleta SÚPER T para acabado a la vista ambas caras, vibrado, reductor de agua tipo Sika o similar, desencofrante tipo Sika o similar, transporte externo e interno y colocación de la formaleta en su sitio de acuerdo a los hilos, medidas y trazos indicados en los planos, lo mismo que el suministro, transporte externo e interno y colocación dentro del molde por medios manuales o mecánicos, del concreto necesario, en las características, secciones y especificaciones indicadas en los planos estructurales de la obra. se Deberá también dar el curado necesario y retirar las formaletas cuando el concreto haya alcanzado su curado inicial. El acero de refuerzo está incluido en su ítem respectivo al igual que la formaleta. NOTA: En general, los muros no estructurales se conciben en concreto reforzado y las cantidades están reportadas dentro del ítem MUROS DE CONCRETO del presupuesto. | D135: m2 | E135: 3,532.91 | F135: $269,389.21 | G135: $951,727,833.90 | I135: 3,532.91 | K135: $0.00
A136: ESP 4.2.8.5 | B136: 4.2.8.5 | C136: Suministro, transporte y colocación de concreto de 24 Mpa(3500 psi), para muro espesor 15 cm, incluye formaleta SÚPER T para acabado a la vista ambas caras, vibrado, reductor de agua tipo Sika o similar, desencofrante tipo Sika o similar, transporte externo e interno y colocación de la formaleta en su sitio de acuerdo a los hilos, medidas y trazos indicados en los planos, lo mismo que el suministro, transporte externo e interno y colocación dentro del molde por medios manuales o mecánicos, del concreto necesario, en las características, secciones y especificaciones indicadas en los planos estructurales de la obra. se deberá también dar el curado necesario y retirar las formaletas cuando el concreto haya alcanzado su curado inicial. El acero de refuerzo está incluido en su ítem respectivo al igual que la formaleta. NOTA: En general, los muros no estructurales se conciben en concreto reforzado y las cantidades están reportadas dentro del ítem MUROS DE CONCRETO del presupuesto. | D136: m2 | E136: 640.00 | F136: $307,739.59 | G136: $196,953,337.60 | I136: 640.00 | K136: $0.00
A137: ESP 4.2.8.6 | B137: 4.2.8.6 | C137: Suministro, transporte y colocación de concreto de 21 Mpa(3000 psi), para muro espesor 12 cm, incluye formaleta SÚPER T para acabado a la vista ambas caras, vibrado, reductor de agua tipo Sika o similar, desencofrante tipo Sika o similar, transporte externo e interno y colocación de la formaleta en su sitio de acuerdo a los hilos, medidas y trazos indicados en los planos, lo mismo que el suministro, transporte externo e interno y colocación dentro del molde por medios manuales o mecánicos, del concreto necesario, en las características, secciones y especificaciones indicadas en los planos estructurales de la obra. se deberá también dar el curado necesario y retirar las formaletas cuando el concreto haya alcanzado su curado inicial. El acero de refuerzo está incluido en su ítem respectivo al igual que la formaleta. NOTA: En general, los muros no estructurales se conciben en concreto reforzado y las cantidades están reportadas dentro del ítem MUROS DE CONCRETO del presupuesto. | D137: m2 | E137: 490.10 | F137: $248,982.18 | G137: $122,026,166.42 | I137: 490.10 | K137: $0.00
A138: ESP 4.2.8.7 | B138: 4.2.8.7 | C138: Suministro, transporte y colocación de concreto de 21 Mpa(3000 psi), para muro espesor 10 cm, incluye formaleta SÚPER T para acabado a la vista ambas caras, vibrado, reductor de agua tipo Sika o similar, desencofrante tipo Sika o similar, transporte externo e interno y colocación de la formaleta en su sitio de acuerdo a los hilos, medidas y trazos indicados en los planos, lo mismo que el suministro, transporte externo e interno y colocación dentro del molde por medios manuales o mecánicos, del concreto necesario, en las características, secciones y especificaciones indicadas en los planos estructurales de la obra. se deberá también dar el curado necesario y retirar las formaletas cuando el concreto haya alcanzado su curado inicial. El acero de refuerzo está incluido en su ítem respectivo al igual que la formaleta.NOTA: En general, los muros no estructurales se conciben en concreto reforzado y las cantidades están reportadas dentro del ítem MUROS DE CONCRETO del presupuesto. | D138: m2 | E138: 578.35 | F138: $235,377.51 | G138: $136,130,582.91 | I138: 578.35 | K138: $0.00
A139: ESP 4.2.8.8 | B139: 4.2.8.8 | C139: Suministro, transporte y colocación de concreto de 21 Mpa(3000 psi), para muro paral espesor 20 cm para soporte de fachada liviana, incluye formaleta SÚPER T para acabado a la vista ambas caras, vibrado, reductor de agua tipo Sika o similar, desencofrante tipo Sika o similar, transporte externo e interno y colocación de la formaleta en su sitio de acuerdo a los hilos, medidas y trazos indicados en los planos, lo mismo que el suministro, transporte externo e interno y colocación dentro del molde por medios manuales o mecánicos, del concreto necesario, en las características, secciones y especificaciones indicadas en los planos estructurales de la obra. se deberá también dar el curado necesario y retirar las formaletas cuando el concreto haya alcanzado su curado inicial. El acero de refuerzo está incluido en su ítem respectivo al igual que la formaleta. | D139: m3 | E139: 235.86 | F139: $1,342,760.13 | G139: $316,703,404.26 | I139: 235.86 | K139: $0.00
C141: TOTAL DE MUROS EN CONCRETO | G141: =SUM(G132:G139) -> $2,560,679,410.91 | K141: =SUM(K132:K139) -> $0.00
B142: 4.2.9 | C142: FORMALETA
A143: ESP 4.2.9.1 | B143: 4.2.9.1 | C143: Alquiler de equipo para el armado de losa (obra falsa) encofrado completo de sistema versatec o equivalente, comparte proporcional de puntales y armadura con puntal de 5 m, encofrado a 3 niveles para un cuarto de losa sistema 1+1 de la planta típica nivel 4 e incluye los elementos necesarios para su correcto funcionamiento. | D143: m2 | E143: 1,136.00 | F143: $509,976.09 | G143: =F143*E143 -> $579,332,838.24 | I143: 1,136.00 | K143: =J143*I143 -> $0.00
A144: ESP 4.2.9.2 | B144: 4.2.9.2 | C144: Alquiler de equipo para el armado de columnas (obra falsa) sistema TEIDYHANDY Encofrado para estructura vertical con dimensiones variables a una altura de vaciado variable y altura de encofrado de 4.80m. Incluye accesorios de fijación y los elementos necesarios para su correcto funcionamiento. No incluye apuntalamiento ni consumibles. | D144: m2 | E144: 234.36 | F144: $759,569.50 | G144: =F144*E144 -> $178,012,708.02 | I144: 234.36 | K144: =J144*I144 -> $0.00
C146: TOTAL DE FORMALETA | G146: =SUM(G143:G144) -> $757,345,546.26 | K146: =SUM(K143:K144) -> $0.00
B148: 4.2.10 | C148: CÁRCAMOS
A149: ESP 4.2.10.1 | B149: 4.2.10.1 | C149: Canaleta en concreto .25m X.40m con rejilla modular antideslizante platinas con eje en acero inoxidable AISI 304. Espesor 1/8" para canal de 15 cm. Luz entre platinas: 25 mm. Ancho de la rejilla 12 cm para canal de 15 cm. | D149: m | E149: 6.77 | F149: $490,154.84 | G149: =F149*E149 -> $3,318,348.27 | I149: 6.77 | K149: =J149*I149 -> $0.00
A150: ESP 4.2.10.2 | B150: 4.2.10.2 | C150: Canaleta en concreto .40m X.50m con rejilla modular antideslizante platinas con eje en acero inoxidable AISI 304. Espesor 1/8" para canal de 50cm. Luz entre platinas: 25 mm. Ancho de la rejilla 12 cm para canal de 15 cm. | D150: m | E150: 28.72 | F150: $528,073.30 | G150: =F150*E150 -> $15,166,265.18 | I150: 28.72 | K150: =J150*I150 -> $0.00
C152: TOTAL DE CARCAMOS | G152: =SUM(G149:G150) -> $18,484,613.44 | K152: =SUM(K149:K150) -> $0.00
C154: TOTAL DE ESTRUCTURA | G154: =SUM(G152+G146+G141+G129+G121+G114+G109+G101+G95) -> $12,065,330,574.19 | K154: =SUM(K152+K146+K141+K129+K121+K114+K109+K101+K95) -> $0.00
C156: TOTAL DE CONCRETOS | G156: =SUM(G154+G88) -> $14,088,708,929.90 | K156: =SUM(K154+K88) -> $0.00
B158: 5.0.0 | C158: ACERO/MALLAS
B160: 5.1.0 | C160: ACERO DE REFUERZO
A161: ESP 5.1.1 | B161: 5.1.1 | C161: Suministro, transporte e instalación de ACERO DE REFUERZO FIGURADO FY= 420 Mpa-60000 PSI, corrugado para elementos en concreto reforzado. Incluye transporte con descarga, transporte interno, alambre de amarre, certificados y todos los elementos necesarios para su correcta instalación, según diseño y recomendaciones estructurales. NOTA: Dentro de las cantidades reportadas de acero de refuerzo se encuentra asociado al arreglo de tres vigas, o vigas cajón, que se extienden entre los ejes C y E, sobre eje el 4 en el nivel 7, y sobre los ejes 2, 3 y 4 en el nivel 8. El peso del refuerzo de cada viga es alrededor de 12560 kg. | D161: kg | E161: 828,940.02 | F161: $6,224.16 | G161: =F161*E161 -> $5,159,455,314.88 | I161: 828,940.02 | K161: =J161*I161 -> $0.00
A162: ESP 5.1.2 | B162: 5.1.2 | C162: Suministro e instalación de anclajes de diámetro 3/8", incluye la perforación, el epóxico y todos los elementos necesarios para su correcto funcionamiento | D162: un | E162: 8,850.00 | F162: $4,655.57 | G162: =F162*E162 -> $41,201,794.50 | I162: 8,850.00 | K162: =J162*I162 -> $0.00
C164: TOTAL DE ACERO DE REFUERZO | G164: =SUM(G161:G162) -> $5,200,657,109.38 | K164: =SUM(K161:K162) -> $0.00
B166: 5.2.0 | C166: MALLA ELECTROSOLDADA
A167: ESP 5.2.1 | B167: 5.2.1 | C167: Colocación de MALLA ELECTROSOLDADA TIPO D 131. Incluye el suministro, transporte del material, corte, instalación y amarre para losa de contrapiso y losas aéreas o donde se requiera. el refuerzo y su instalación debe cumplir con la Norma NSR 10. Incluye alambre recocido y todos los elementos necesarios para su correcta colocación. | D167: m2 | E167: 19,273.07 | F167: $16,777.78 | G167: =F167*E167 -> $323,359,328.38 | I167: 19,273.07 | K167: =J167*I167 -> $0.00
B168: 5.2.2 | C168: Colocación de MALLA ELECTROSOLDADA TIPO: D221. Incluye el suministro, transporte del material, corte, instalación y amarre para muros de concreto no estructurales o donde se requiera. El refuerzo y su instalación debe cumplir con la Norma NSR 10. Incluye alambre recocido y todos los elementos necesarios para su correcta colocación. | D168: m2 | E168: 1,681.75 | F168: $25,421.64 | G168: =F168*E168 -> $42,752,944.76 | I168: 1,681.75 | K168: =J168*I168 -> $0.00
B169: 5.2.3 | C169: Colocación de MALLA ELECTROSOLDADA TIPO: D257 . Incluye el suministro, transporte del material, corte, instalación y amarre para muros de concreto no estructurales o donde se requiera. El refuerzo y su instalación debe cumplir con la Norma NSR 10. Incluye alambre recocido y todos los elementos necesarios para su correcta colocación. | D169: m2 | E169: 490.10 | F169: $22,424.45 | G169: =F169*E169 -> $10,990,144.46 | I169: 490.10 | K169: =J169*I169 -> $0.00
B170: 5.2.4 | C170: Colocación de MALLA ELECTROSOLDADA TIPO: D158 . Incluye el suministro, transporte del material, corte, instalación y amarre para muros de concreto no estructurales o donde se requiera. El refuerzo y su instalación debe cumplir con la Norma NSR 10. Incluye alambre recocido y todos los elementos necesarios para su correcta colocación. | D170: m2 | E170: 3,529.58 | F170: $26,730.67 | G170: =F170*E170 -> $94,348,070.30 | I170: 3,529.58 | K170: =J170*I170 -> $0.00
G172: =G167+G168+G169+G170 -> $471,450,487.90 | K172: =K167+K168+K169+K170 -> $0.00
B174: 5.0.0 | C174: TOTAL DE ACERO/MALLAS | G174: =G164+G172 -> $5,672,107,597.28 | K174: =K164+K172 -> $0.00
B176: 6.0.0 | C176: ACABADOS E IMPERMEABILIZACIONES
B178: 6.1.0 | C178: PINTURA/ESTUCO/ENCHAPE
B180: 6.1.1 | C180: ESTUCO
A181: ESP 6.1.1.1 | B181: 6.1.1.1 | C181: Colocación de ESTUCO ACRÍLICO PROFESIONAL, SOBRE MUROS REVOCADOS, 3 manos mínimo, o las que sean necesarias para obtener una superficie pareja y homogénea. Incluye suministro y transporte de los materiales, ranuras, filetes, dilataciones y todos los elementos necesarios para su correcta aplicación y funcionamiento. | D181: m2 | E181: 5,789.54 | F181: $27,213.32 | G181: =F181*E181 -> $157,552,604.67 | I181: 5,789.54 | K181: =J181*I181 -> $0.00
C183: TOTAL DE ESTUCO | G183: =G181 -> $157,552,604.67 | K183: =K181 -> $0.00
B185: 6.1.2 | C185: ENCHAPES
A186: ESP 6.1.2.1 | B186: 6.1.2.1 | C186: Suministro, transporte e instalación de Enchape en cerámica Vancouver Caras Diferenciadas formato 30x60 color Beige Ref.604602031, marca corona o equivalente e incluye los elementos necesarios para su correcto funcionamiento. | D186: m2 | E186: 1,545.43 | F186: $87,500.46 | G186: =F186*E186 -> $135,225,835.90 | I186: 1,545.43 | K186: =J186*I186 -> $0.00
A187: ESP 6.1.2.2 | B187: 6.1.2.2 | C187: Suministro, transporte e instalación de Enchape en cerámica rectificada plana formato 30 x 60 cms Ref. 608039001 Corona color blanco o equivalente. Altura 1.50 cms. Disposición horizontal. Especificaciones e instalación según proveedor e incluye los elementos necesarios para su correcto funcionamiento. | D187: m2 | E187: 469.99 | F187: $89,600.46 | G187: =F187*E187 -> $42,111,320.20 | I187: 469.99 | K187: =J187*I187 -> $0.00
B188: 6.1.2.3 | C188: Suministro, transporte e instalación de recubrimiento de muro tipo domus RP16 , en melanina duratex referencia sagano vetta o similar, incluye estructura, herramientas, andamios, mano de obra y los materiales necesarios para su correcta instalación. | D188: m2 | E188: 805.51 | F188: $460,978.00 | G188: =F188*E188 -> $371,322,388.78 | I188: 805.51 | K188: =J188*I188 -> $0.00
C190: TOTAL DE ENCHAPES | G190: =SUM(G186:G188) -> $548,659,544.87 | K190: =SUM(K186:K188) -> $0.00
B192: 6.1.3 | C192: PINTURA
A193: ESP 6.1.3.1 | B193: 6.1.3.1 | C193: Aplicación de PINTURA A BASE DE AGUA EN MUROS, CON VINILO TIPO 1 de primera calidad sobre muros revocados y/o estucados, tres manos hasta obtener una superficie pareja y homogénea. Incluye suministro y transporte de los materiales, tapa poros en estuco plástico tipo plastiestuco o equivalente diluido en agua proporción 1:2, adecuación de la superficie a intervenir hasta obtener una superficie pareja y homogénea, color blanco. | D193: m2 | E193: 12,596.94 | F193: $21,244.28 | G193: =F193*E193 -> $267,612,920.50 | I193: 12,596.94 | K193: =J193*I193 -> $0.00
A194: ESP 6.1.3.3 | B194: 6.1.3.3 | C194: Aplicación de PINTURA EPOXICA de primera calidad sobre muros y/o cielos revocados y/o estucados, dos manos hasta obtener una superficie pareja y homogénea. Incluye catalizador, filos y dilataciones, suministro y transporte de los materiales, tapa poros en estuco plástico, adecuación de la superficie a intervenir hasta obtener una superficie pareja y homogénea, color blanco y todos los elementos necesarios para su correcta aplicación. | D194: m2 | E194: 1,234.04 | F194: $37,847.37 | G194: =F194*E194 -> $46,705,168.47 | I194: 1,234.04 | K194: =J194*I194 -> $0.00
A195: ESP 6.1.3.4 | B195: 6.1.3.4 | C195: Aplicación de PINTURA A BASE DE AGUA EN MUROS, CON VINILO color ocre o similar de primera calidad sobre muros revocados y/o estucados, tres manos hasta obtener una superficie pareja y homogénea. Incluye suministro y transporte de los materiales, tapa poros en estuco plástico tipo plastiestuco o equivalente diluido en agua proporción 1:2, adecuación de la superficie a intervenir hasta obtener una superficie pareja y homogénea. | D195: m2 | E195: 1,615.38 | F195: $20,573.70 | G195: =F195*E195 -> $33,234,343.51 | I195: 1,615.38 | K195: =J195*I195 -> $0.00
C197: TOTAL DE PINTURA | G197: =SUM(G193:G195) -> $347,552,432.48 | K197: =SUM(K193:K195) -> $0.00
B199: 6.1.4 | C199: REVOQUE
A200: ESP 6.1.4.1 | B200: 6.1.4.1 | C200: Colocación de REVOQUE con mortero 1:4 EN MUROS. Incluye suministro y transporte de los materiales, fajas, ranuras, filetes y todos los demás elementos necesarios para su correcta construcción. | D200: m2 | E200: 5,592.04 | F200: $30,742.63 | G200: =E200*F200 -> $171,914,006.48 | I200: 5,592.04 | K200: =I200*J200 -> $0.00
C202: TOTAL DE REVOQUE | G202: =G200 -> $171,914,006.48 | K202: =K200 -> $0.00
C204: TOTAL DE PINTURA/ESTUCO/ENCHAPE | G204: =SUM(G202+G197+G190+G183) -> $1,225,678,588.51 | K204: =SUM(K202+K197+K190+K183) -> $0.00
B206: 6.2.0 | C206: IMPERMEABILIZACIONES
A207: ESP 6.2.0.1 | B207: 6.2.0.1 | C207: Suministro e instalación de sistema impermeabilizante a base de membrana de PVC plastificado, tipo Sika Sarnafil S-327 12L, con espesor de 1.5 mm, reforzada con fibra de poliéster y alta reflectividad. Incluye preparación de superficie, colocación de geotextil, anclajes de fijación, láminas metálicas de terminación, adhesivos y todos los elementos necesarios para su correcto funcionamiento. | D207: m2 | E207: 2,272.84 | F207: $285,490.88 | G207: =E207*F207 -> $648,875,091.70 | I207: 2,272.84 | K207: =I207*J207 -> $0.00
A208: ESP 6.2.0.2 | B208: 6.2.0.2 | C208: Aplicación de impermeabilizante acrílico o epóxico en terrazas niveles 3 y 6 y zonas de duchas en baños interiores de primera calidad sobre morteros con pendientes, dos manos o las necesarias hasta obtener una superficie pareja y homogénea. Incluye catalizador, filos y dilataciones, suministro y transporte de los materiales, resanes, tapa poros y adecuación de la superficie a intervenir hasta obtener una superficie pareja y homogénea y todos los elementos necesarios para su correcta aplicación. | D208: m2 | E208: 971.55 | F208: $36,521.38 | G208: =E208*F208 -> $35,482,346.74 | I208: 971.55 | K208: =I208*J208 -> $0.00
A209: ESP 6.2.0.3 | B209: 6.2.0.3 | C209: Aplicación de membrana PVC para impermeabilización de tanque, incluye Instalación de perfilería perimetral con chazos, geotextil 1600., geomembrana PVC 1,2 mm., Construcción de emboquillados de bajantes, Emboquillado de incrustaciones, Aplicación de sello elástico perimetral para sellar perfil de anclaje y los materiales necesarios para su correcto funcionamiento. | D209: m2 | E209: 348.45 | F209: $116,900.00 | G209: =E209*F209 -> $40,733,805.00 | I209: 348.45 | K209: =I209*J209 -> $0.00
A210: ESP 6.2.0.4 | B210: 6.2.0.4 | C210: Construcción de MEDIA CAÑA EN MORTERO 1:4. Con un desarrollo 25 cm, para cubierta. Incluye suministro, transporte de los materiales, mano de obra de regata y todo lo necesario para su correcta construcción. Según diseño. | D210: m | E210: 302.96 | F210: $39,908.41 | G210: =E210*F210 -> $12,090,651.89 | I210: 302.96 | K210: =I210*J210 -> $0.00
A211: ESP 6.2.0.5 | B211: 6.2.0.5 | C211: Aplicación de Impermeabilizante para foso de ascensor y/o malacate con recubrimiento cementoso para la impermeabilización de estructuras (broncosil y broncoplug (compuesto hidráulico de fraguado rápido para sellar filtraciones de agua en concreto), incluye suministro, transporte e instalación y todos los elementos necesarios para su correcto funcionamiento. Para un área total de 17,28 m2 | D211: un | E211: 4.00 | F211: $782,326.56 | G211: =E211*F211 -> $3,129,306.24 | I211: 4.00 | K211: =I211*J211 -> $0.00
C213: TOTAL DE IMPERMEABILIZACIONES | G213: =SUM(G207:G211) -> $740,311,201.57 | K213: =SUM(K207:K211) -> $0.00
C215: TOTAL DE ACABADOS E IMPERMEABILIZACIONES | G215: =SUM(G213+G204) -> $1,965,989,790.08 | K215: =SUM(K213+K204) -> $0.00
B217: 7.0.0 | C217: PISOS
B219: 7.1.0 | C219: PISOS Y ZÓCALOS EN CERÁMICA Y PIEDRA
A220: ESP 7.1.1 | B220: 7.1.1 | C220: Colocación de Piso Porcelanato Rectificado Manet ARD® PRO Marfil Multitono 60x120, ref. 123542051, calidad corona o equivalente para baños. Incluye suministro y transporte de los materiales, adhesivo Pegantto Plus o equivalente, boquilla Juntta Puss gris o equivalente, juntas de dilatación elastoméricas tipo sikaflex o equivalente y todos los demás elementos necesarios para su correcta construcción y funcionamiento. | D220: m2 | E220: 570.67 | F220: $150,141.06 | G220: =E220*F220 -> $85,680,998.71 | I220: 570.67 | K220: =I220*J220 -> $0.00
A221: ESP 7.1.2 | B221: 7.1.2 | C221: Colocación de Piso en cerámica Vancouver hielo Ref. 607942221, formato 60 x 60 cm, modulación según detalle específico, calidad corona o equivalente. Incluye suministro y transporte de los materiales, adhesivo Pegantto Pluss o equivalente, boquilla Juntta Puss gris o equivalente, juntas de dilatación elastoméricas tipo sikaflex o equivalente y todos los demás elementos necesarios para su correcta construcción y funcionamiento. | D221: m2 | E221: 116.57 | F221: $92,774.51 | G221: $10,814,724.63 | I221: 116.57 | K221: $0.00
A222: ESP 7.1.3 | B222: 7.1.3 | C222: Suministro, transporte e instalación de Piso en piedra natural Royal dorado e=1,5 cm para tráfico pesado acabado cepillado, formato 30cm x junta perdida (variable). Espesor 1 cm + mortero de pega, nivelación y lechada. Pegante Pegacor Max con látex Ref. 901011501 corona o similar. Remate contra muros en arenón tipo royal dorado. Incluye transporte interno y los demás elementos necesarios para su correcto funcionamiento. | D222: m2 | E222: 398.92 | F222: $437,368.95 | G222: $174,475,221.53 | I222: 398.92 | K222: $0.00
A223: ESP 7.1.4 | B223: 7.1.4 | C223: Suministro, transporte e instalación de Piso en piedra natural Royal dorado e=2,0 cm para tráfico pesado acabado anticado, formato 30cm x junta perdida (variable). Espesor 1 cm + mortero de pega, nivelación y lechada. Pegante Pegacor Max con látex Ref. 901011501 corona o similar. Remate contra muros en arenón tipo royal dorado. El acabado de la piedra lo hace el instalador. Incluye transporte interno y los demás elementos necesarios para su correcto funcionamiento. | D223: m2 | E223: 107.73 | F223: $438,619.08 | G223: $47,252,433.49 | I223: 107.73 | K223: $0.00
A224: ESP 7.1.5 | B224: 7.1.5 | C224: Suministro transporte e instalación de zócalo en piedra royal acabado cepillado y anticado , junta perdida *10*1, e=1,5 cm, formato 30cm x junta perdida (variable). Espesor 1cm + pega y lechada. Pegante Pegacor Max con látex Ref. 901011501 corona o similar. Incluye transporte interno y los demás elementos necesarios para su correcto funcionamiento. | D224: m | E224: 247.70 | F224: $60,264.81 | G224: $14,927,593.44 | I224: 247.70 | K224: $0.00
A225: ESP 7.1.6 | B225: 7.1.6 | C225: Colocación de ZÓCALO EN PISO Manet ARD PRO formato .60x1.20 cm color marfil multitono Ref.123542051, de 10 cms, marca corona o equivalente mismo material del piso. Instalación y modulación según detalle específico. Incluye suministro y transporte de los materiales, cortes con máquina, pegante para cerámica tipo Pegacor o equivalente, lechada con Boquilla para cerámica y todo lo necesario para su correcta instalación y funcionamiento. | D225: m | E225: 69.40 | F225: $38,210.47 | G225: $2,651,806.62 | I225: 69.40 | K225: $0.00
A226: ESP 7.1.7 | B226: 7.1.7 | C226: Construcción de GUARDAESCOBA EN MEDIA CAÑA EN MORTERO CON IMPERMEABILIZANTE INTEGRAL 1:3 con Sika 1 o su equivalente. Con un desarrollo de 25 cm. Incluye suministro y transporte de los materiales, varilla de dilatación de 3 mm., superior e inferior y curvas de aluminio cada 1.80 m. o donde sea necesario y todo lo necesario para su correcta construcción. Según diseño. | D226: m | E226: 2,010.90 | F226: $50,315.30 | G226: $101,179,036.77 | I226: 2,010.90 | K226: $0.00
A227: ESP 7.1.8 | B227: 7.1.8 | C227: Construcción de vaciado zócalo 1/2 caña en grano. Incluye: lechada, grano, forma media caña en aluminio de 3 mm, varilla de dilatación plástica parte inferior y mano de obra en vaciado. Con un desarrollo ≤ 20 cm. Incluye: lechada y grano, pulido, destronque y repulido, brillo y diamantado y todos los demás elementos para su correcto funcionamiento. | D227: m | E227: 57.90 | F227: $60,370.95 | G227: $3,495,478.01 | I227: 57.90 | K227: $0.00
A228: ESP 7.1.9 | B228: 7.1.9 | C228: Suministro, transporte e instalación de ATRAPAMUGRE en Piedra royal bronce, acabado abujardado de 30cm x jp x 2 cm de espesor, incluye lechada, pegante, lavado y sellado y los elementos necesarios para su correcto funcionamiento. | D228: m | E228: 8.15 | F228: $198,539.98 | G228: $1,618,100.85 | I228: 8.15 | K228: $0.00
A229: ESP 7.1.10 | B229: 7.1.10 | C229: Suministro, transporte e instalación de ZOCALO EN MDF CHAPILLADO Y TINTILLADO, incluye varilla de 2.44 m, la herramienta menor (clavos, puntillas, pegamento, silicona) y todos los elementos necesarios para su correcto funcionamiento. | D229: m | E229: 288.70 | F229: $85,442.00 | G229: $24,667,105.40 | I229: 288.70 | K229: $0.00
B230: 7.1.11 | C230: Construcción de GUARDAESCOBA EN CONCRETO PIGMENTADO o su equivalente. Incluye suministro y transporte de los materiales, varilla de dilatación de 3 mm., superior e inferior y todo lo necesario para su correcta construcción. Según diseño. | D230: m | E230: 196.60 | F230: $38,921.47 | G230: $7,651,961.79 | I230: 196.60 | K230: $0.00
C232: TOTAL DE PISOS Y ZÓCALOS EN CERÁMICA Y PIEDRA | G232: =SUM(G220:G230) -> $474,414,461.23 | K232: =SUM(K220:K230) -> $0.00
B234: 7.2.0 | C234: PISOS VARIOS
A235: ESP 7.2.1 | B235: 7.2.1 | C235: Suministro y transporte de piso falso TIPO POLITI para interiores en acero de alta resistencia, revestido con pintura epóxica, Las placas en su parte inferior contienen 64 celdas. Módulo de 60x60 cm o similar. No incluye acabado (el acabado recomendado es alfombra o vinilo autoportante a partir de 4.5mm para permitir el registro, no tipo click). Resistencia: 2019,04 Kg/m2 de carga distribuida. Pedestales de Acero de altura regulables TIPOLOGÍA 1 - 600x600x30mm - 35MM C BOARD - STEEL FULL WRAPPED TYPE - FFH150MM - CROSS HEAD PEDESTAL HEAD AND BASE | D235: m2 | E235: 21.85 | F235: $314,227.73 | G235: =E235*F235 -> $6,865,875.90 | I235: 21.85 | K235: =I235*J235 -> $0.00
A236: ESP 7.2.2 | B236: 7.2.2 | C236: Instalación de piso falso TIPO POLITI para interiores en acero de alta resistencia revestido con pintura epóxica, las placas en su parte inferior contienen 64 celdas. Módulo de 60x60 cm o similar. | D236: m2 | E236: 21.85 | F236: $40,206.92 | G236: $878,521.20 | I236: 21.85 | K236: $0.00
A237: ESP 7.2.3 | B237: 7.2.3 | C237: Suministro y transporte de sistema de PISO DE TABLETA Triangular PREFABRICADA exterior, conjunto piso tableta triangular, referencia PRO3774, marca Cimbrados o equivalente y los elementos necesarios para su correcto funcionamiento | D237: m2 | E237: 566.85 | F237: $140,818.65 | G237: $79,823,051.75 | I237: 566.85 | K237: $0.00
A238: ESP 7.2.4 | B238: 7.2.4 | C238: Instalación de piso exterior PISO DE TABLETA TRIANGULAR PREFABRICADA flotante, incluye todos los elementos necesarios para su correcto funcionamiento | D238: m2 | E238: 969.19 | F238: $66,934.32 | G238: $64,872,073.60 | I238: 969.19 | K238: $0.00
A239: ESP 7.2.5 | B239: 7.2.5 | C239: Construcción de PISO EN MORTERO 1:5 de NIVELACIÓN, espesor de 0.05m. Incluye suministro y transporte de los materiales y todo lo necesario para su correcta construcción y funcionamiento. | D239: m2 | E239: 4,954.29 | F239: $32,011.30 | G239: $158,593,263.48 | I239: 4,954.29 | K239: $0.00
A240: ESP 7.2.6 | B240: 7.2.6 | C240: Suministro, transporte e instalación de piso DE VINILO Lvt Milliken, para tráfico comercial, medidas 15.24 CM X 121.92 CM, con espesor de 2,5 MM, el paquete trae 3.34 M2, cuenta con 15 años de garantía, acabado de poliuretano reforzado con silicona, suministra excelente resistencia a la mancha, a la abrasión y el rayado, incluye adhesivo y mastico, y los elementos necesarios para su correcta instalación. No incluye El subsuelo (mortero) debe estar duro, plano, seco, liso, limpio, regular, sin ondulaciones, libre de rastros de yeso, pintura, pegamentos, aceite o de sustancias grasas. | D240: m2 | E240: 755.71 | F240: $260,973.75 | G240: $197,220,472.61 | I240: 755.71 | K240: $0.00
A241: ESP 7.2.7 | B241: 7.2.7 | C241: Suministro e instalación de tableta táctil tallada en piedra royal beta espesor de 2 cm incluye mortero de pega, nivelación, lechada de asiento, junta y los elementos necesarios para su correcta instalación | D241: m | E241: 44.61 | F241: $497,038.22 | G241: $22,172,874.99 | I241: 44.61 | K241: $0.00
B242: 7.2.8 | C242: Suministro, transporte e instalación de piso en vinilo antiestático conductivo Ref. IQ Toro SC Tarket espesor 2,0mm formato rollo 2x23m. o equivalente. Piso vinílico homogéneo prensado permanentemente conductor de la electricidad estática., incluye adhesivo y mastico, y los elementos necesarios para su correcta instalación. No incluye El subsuelo (mortero) debe estar duro, plano, seco, liso, limpio, regular, sin ondulaciones, libre de rastros de yeso, pintura, pegamentos, aceite o de sustancias grasas. | D242: m2 | E242: 425.78 | F242: $378,301.80 | G242: =F242*E242 -> $161,073,340.40 | I242: 425.78 | K242: =I242*J242 -> $0.00
B243: 7.2.9 | C243: Suministro, transporte e instalación de piso DE VINILO Lvt Milliken, para tráfico comercial, medidas 15.24 CM X 121.92 CM, con espesor de 5,0 MM, el paquete trae 3.34 M2, cuenta con 15 años de garantía, acabado de poliuretano reforzado con silicona, suministra excelente resistencia a la mancha, a la abrasión y el rayado, incluye adhesivo y mastico, y los elementos necesarios para su correcta instalación. No incluye El subsuelo (mortero) debe estar duro, plano, seco, liso, limpio, regular, sin ondulaciones, libre de rastros de yeso, pintura, pegament | D243: m2 | E243: 1,407.89 | F243: $286,919.26 | G243: =F243*E243 -> $403,950,756.96 | I243: 1,407.89 | K243: =I243*J243 -> $0.00
B244: 7.2.10 | C244: Suministro, transporte e instalación de Rejilla de hierro ductil para piso en buitrones, material de alta resistencia. Dimensiones según especificaciones de planos con espesor de 1/8" antideslizante o similar y los materiales necesarios para su correcto funcionamiento | D244: m2 | E244: 120.63 | F244: $134,307.06 | G244: $16,201,460.14 | I244: 120.63 | K244: =I244*J244 -> $0.00
C246: TOTAL DE PISOS VARIOS | G246: =SUM(G235:G244) -> $1,111,651,691.05 | K246: =SUM(K235:K244) -> $0.00
B248: 7.3.0 | C248: PISOS EN CONCRETO
A249: ESP 7.3.1 | B249: 7.3.1 | C249: Suministro, transporte e instalación de sintética tipo twister en cuantía de 3 kg/m3, incluye lamina de aislamiento de polietileno negro cal 6 sencilla, vaciado por franjas o carriles de vaciado con conexión mecánica, dovelas de 12 mm en el eje neutro de la losa longitud 40 cm espaciadas cada 40 cm, refuerzo de malla electro soldada de 6 mm de espesor en tercio superior en las zonas irregulares cuyo factor de forma supere la modulación recomienda entre 2,75 y 3,25 mts paños aprox de 3x3, refuerzo las aristas vivas con acero de 12 mm, 3 barras a 45 grados acabado con endurecedor de quartzo 4 kg/m2 afinado liso poro cerrado con allanadoras mecánicas, corte y sello de juntas de construcción, contracción y aislamiento, el método de colocación de concreto será bombeado o asistido. validar diseño previamente por especialista de pisos mbing sas o similar. | D249: m2 | E249: 4,107.46 | F249: $172,067.50 | G249: =E249*F249 -> $706,760,373.55 | I249: 4,107.46 | K249: =I249*J249 -> $0.00
A250: ESP 7.3.2 | B250: 7.3.2 | C250: Suministro, transporte e instalación de piso en concreto de 7 cm de espesor mr 40 o 4000 psi, agregado nominal de 3/4" con pigmento de color ocre integral dentro de la mezcla de concreto (crema) contracción igual o menor a 0,06 al día 56 de vaciado con adición de fibra sintética tipo twister en cuantía de 2,2 kg/m3, incluye lamina de aislamiento de polietileno negro cal 6 sencilla, vaciado por franjas o carriles de vaciado con conexión mecánica dovelas de 9 mm en el eje neutro de la losa longitud 30 cm espaciadas cada 40 cm, refuerzo de malla electro soldada de 5 mm de espesor en tercio superior en las zonas irregulares cuyo factor de forma supere la modulación recomienda entre 1,75 y 2,25 mts paños aprox de 2x2, refuerzo de las aristas vivas con acero de 9 mm 3 barras a 45 grados acabado con endurecedor de quartzo ocre o crema 8 kg/m2 afinado liso poro cerrado acabado con aspas de teflón con allanadoras mecánicas, corte y sello de juntas de construcción, contracción y aislamiento, el método de colocación de concreto será bombeado o asistido, se debe realizar validación de diseño previamente por especialista de pisos mbing sas o similar. | D250: m2 | E250: 1,381.75 | F250: $238,329.13 | G250: =E250*F250 -> $329,311,275.38 | I250: 1,381.75 | K250: =I250*J250 -> $0.00
A251: ESP 7.3.3 | B251: 7.3.3 | C251: Suministro, transporte e instalación de piso en concreto de 7 cm de espesor mr 40 o 4000 psi, agregado nominal de 3/4" contracción igual o menor a 0,06 al día 56 de vaciado con adición de fibra sintética tipo twister en cuantía de 2,2 kg/m3, incluye lamina de aislamiento de polietileno negro cal 6 sencilla, vaciado por franjas o carriles de vaciado con conexión mecánica dovelas de 9 mm en el eje neutro de la losa longitud 30 cm espaciadas cada 40 cm, refuerzo de malla electro soldada de 5 mm de espesor en tercio superior en las zonas irregulares cuyo factor de forma supere la modulación recomienda entre 1,75 y 2,25 mts paños aprox de 2x2, se debe reforzar las aristas vivas con acero de 9 mm 3 barras a 45 grados acabado con endurecedor de quartzo gris claro 7 kg/m2 afinado liso poro cerrado acabado con aspas de teflón con allanadoras mecánicas, corte y sello de juntas de construcción, contracción y aislamiento, el método de colocación de concreto será bombeado o asistido se debe realizar validación de diseño previamente por especialista de pisos mbing sas o similar. | D251: m2 | E251: 1,112.59 | F251: $203,477.64 | G251: =E251*F251 -> $226,387,187.49 | I251: 1,112.59 | K251: =I251*J251 -> $0.00
C253: TOTAL DE PISOS EN CONCRETO | G253: =SUM(G249:G251) -> $1,262,458,836.42 | K253: =SUM(K249:K251) -> $0.00
C255: TOTAL DE PISOS | G255: =SUM(G253+G246+G232) -> $2,848,524,988.69 | K255: =SUM(K253+K246+K232) -> $0.00
B257: 8.0.0 | C257: APARATOS/GRIFERÍA/MUEBLES/MESONES
B259: 8.1.0 | C259: APARATOS SANITARIOS
A260: ESP 8.1.1 | B260: 8.1.1 | C260: Suministro, transporte y colocación de Combo manantial pro redondo botón con pedestal blanco ref. O26751001 o equivalente, contiene sanitario manantial pro con capacidad de evacuación de 400 gr con un consumo de 4.8 litros, lavamanos manantial con pedestal elaborado en porcelana, grifería nogal con llave individual y Kit de accesorios cromados valencia de 4 piezas (jabonera, percha, portarrollo y toallero argolla) y todos los elementos necesarios para su correcto funcionamiento. | D260: un | E260: 1.00 | F260: $779,622.23 | G260: =E260*F260 -> $779,622.23 | I260: 1.00 | K260: =I260*J260 -> $0.00
A261: ESP 8.1.2 | B261: 8.1.2 | C261: Suministro, transporte e instalación de Kit Taza Adriática Plus Entrada Posterior con válvula Dúplex Pro ref. CO6821001 o equivalente, esta taza cuenta con descarga por sistema jet, con capacidad de evacuación de 1000 grs. de sólidos y sifón 100 % esmaltado, válvula Dúplex Pro electrónica para sanitario con sensor infrarrojo, con herrajes reforzados, mayor grosor y ancho del aro y todos los elementos necesarios para su correcta instalación. | D261: un | E261: 14.00 | F261: $2,122,675.13 | G261: =E261*F261 -> $29,717,451.82 | I261: 14.00 | K261: =I261*J261 -> $0.00
A262: ESP 8.1.3 | B262: 8.1.3 | C262: Suministro, transporte e instalación de Taza Báltica Plus Entrada Posterior ref. CO6801001 o equivalente, esta taza cuenta con descarga por sistema jet, con capacidad de evacuación de 1000 grs. de sólidos y sifón 100 % esmaltado, válvula Dúplex Pro electrónica para sanitario con sensor infrarrojo, con herrajes reforzados, mayor grosor y ancho del aro y los demás elementos necesarios para su correcto funcionamiento. | D262: un | E262: 27.00 | F262: $1,974,044.13 | G262: =E262*F262 -> $53,299,191.51 | I262: 27.00 | K262: =I262*J262 -> $0.00
A263: ESP 8.1.4 | B263: 8.1.4 | C263: Suministro, transporte e instalación de Kit Orinal Gotta Entrada Posterior con válvula Dúplex Pro ref. CO6841001 o equivalente, tiene un diseño moderno con sifón oculto integrado en la porcelana, válvula dúplex pro electrónica para orinal con sensor infrarrojo y todos los elementos necesarios para su correcto funcionamiento. | D263: un | E263: 8.00 | F263: $1,890,055.63 | G263: =E263*F263 -> $15,120,445.04 | I263: 8.00 | K263: =I263*J263 -> $0.00
A264: ESP 8.1.5 | B264: 8.1.5 | C264: Suministro, transporte e instalación de Sanitario Ultra Ahorrador Powermax blanco ref O20801001 o equivalente, máxima potencia y máximo ahorro en cada descarga capacidad de evacuación de sólidos de 1000 gramos consumo de agua de 3.8 litros y todos los elementos necesarios para su correcto funcionamiento. | D264: un | E264: 5.00 | F264: $1,596,103.13 | G264: =E264*F264 -> $7,980,515.65 | I264: 5.00 | K264: =I264*J264 -> $0.00
C266: TOTAL DE APARATOS SANITARIOS | G266: =SUM(G260:G264) -> $106,897,226.25 | K266: =SUM(K260:K264) -> $0.00
B268: 8.2.0 | C268: MESÓN - LAVAMANOS
A269: ESP 8.2.1 | B269: 8.2.1 | C269: Suministro, transporte y colocación de lavamanos de sobreponer Lavamanos Free institucional ref OO3891001 o equivalente, color blanco, cerámico esmaltado. Incluye sifón botella, abasto, emboquillado con silicona antihongos, brazos de fijación para drywall ref. 718040001 marca corona o similar y todos los demás elementos necesarios para su correcta instalación y funcionamiento. Este producto no incluye el Semipedestal Free y grifería. | D269: un | E269: 14.00 | F269: $654,552.07 | G269: =E269*F269 -> $9,163,728.98 | I269: 14.00 | K269: =I269*J269 -> $0.00
A270: ESP 8.2.2 | B270: 8.2.2 | C270: Suministro, transporte y colocación de Lavamanos con mesón extruidos de una sola pieza conformado en Corian color blanco glaciar o similar de 12 mm grosor de 600 mm x 2300 mm, incluye perforación de griferías y los elementos necesarios para su correcto funcionamiento. No incluye accesorios, trabajos de obra civil, eléctricos, gas, ni transporte vertical a partir del 3er piso. | D270: un | E270: 2.00 | F270: $8,466,018.00 | G270: =E270*F270 -> $16,932,036.00 | I270: 2.00 | K270: =I270*J270 -> $0.00
A271: ESP 8.2.3 | B271: 8.2.3 | C271: Suministro, transporte y colocación de Lavamanos con mesón extruidos de una sola pieza conformado en Corian color blanco glaciar o similar de 12 mm grosor de 600 mm x 2500 mm, incluye perforación de griferías y los elementos necesarios para su correcto funcionamiento. No incluye accesorios, trabajos de obra civil, eléctricos, gas, ni transporte vertical a partir del 3er piso. | D271: un | E271: 12.00 | F271: $9,175,910.00 | G271: =E271*F271 -> $110,110,920.00 | I271: 12.00 | K271: =I271*J271 -> $0.00
A272: ESP 8.2.4 | B272: 8.2.4 | C272: Suministro, transporte y colocación de Lavamanos con mesón extruidos de una sola pieza conformado en Corian color blanco glaciar o similar de 12 mm grosor de 600 mm x 1100 mm, incluye perforación de griferías y los elementos necesarios para su correcto funcionamiento. No incluye accesorios, trabajos de obra civil, eléctricos, gas, ni transporte vertical a partir del 3er piso. | D272: un | E272: 8.00 | F272: $4,587,466.00 | G272: =E272*F272 -> $36,699,728.00 | I272: 8.00 | K272: =I272*J272 -> $0.00
C274: TOTAL DE MESÓN - LAVAMANOS | G274: =SUM(G269:G272) -> $172,906,412.98 | K274: =SUM(K269:K272) -> $0.00
B276: 8.3.0 | C276: INCRUSTACIONES/ACCESORIOS
A277: ESP 8.3.1 | B277: 8.3.1 | C277: Suministro, transporte y colocación de DISPENSADOR JABON expuesto, de accionamiento tipo push ref. 706520001, marca corona o equivalente, con capacidad para un litro de jabón y los demás elementos necesarios para su correcto funcionamiento. | D277: un | E277: 32.00 | F277: $509,278.29 | G277: =E277*F277 -> $16,296,905.28 | I277: 32.00 | K277: =I277*J277 -> $0.00
A278: ESP 8.3.2 | B278: 8.3.2 | C278: Suministro, transporte y colocación de papelera metálica ref 706630001 tipo Corona o equivalente. Incluye pegacor y todos los demás elementos necesarios para su correcta instalación. | D278: un | E278: 53.00 | F278: $622,464.55 | G278: $32,990,621.15 | I278: 53.00 | K278: $0.00
A279: ESP 8.3.3 | B279: 8.3.3 | C279: Suministro, transporte y colocación de dispensador de papel higiénico ref 706670001 o equivalente, elaborado en acero inoxidable que evita la corrosión, pelado y decoloración por agua, incluye ranura para conocer la cantidad de papel restante y todos los elementos necesarios para su correcta instalación. Ideal para espacios públicos de alto tráfico. | D279: un | E279: 57.00 | F279: $432,663.55 | G279: $24,661,822.35 | I279: 57.00 | K279: $0.00
A280: ESP 8.3.4 | B280: 8.3.4 | C280: Suministro, transporte e instalación de Secador de manos potenza, en acero inoxidable, tipo turbo con sistema de sensor para uso de manos libres ref.706650001 o equivalente. Diseñado para anclaje a muro con restricciones de seguridad para proteger su instalación y vandalismos leves. Potencia 1800 w, contiene el secador y todos los elementos necesarios para su correcta instalación. | D280: un | E280: 42.00 | F280: $1,360,511.55 | G280: $57,141,485.10 | I280: 42.00 | K280: $0.00
A281: ESP 8.3.5 | B281: 8.3.5 | C281: Suministro, transporte y colocación de barra de seguridad para discapacitados ref. 706560001 marca corono o equivalente, de 24" en acero inoxidable. Incluye pernos para anclaje, escudos en acero inoxidable y todos los elementos necesarios para su correcta instalación y funcionamiento, según diseño. | D281: un | E281: 12.00 | F281: $248,556.43 | G281: $2,982,677.16 | I281: 12.00 | K281: $0.00
A282: ESP 8.3.6 | B282: 8.3.6 | C282: Suministro, transporte y colocación de barra de seguridad para discapacitados ref. 706570001 marca corono o equivalente, de 30" en acero inoxidable. Incluye pernos para anclaje, escudos en acero inoxidable y todos los elementos necesarios para su correcta instalación y funcionamiento, según diseño. | D282: un | E282: 12.00 | F282: $305,264.43 | G282: $3,663,173.16 | I282: 12.00 | K282: $0.00
A283: ESP 8.3.7 | B283: 8.3.7 | C283: Suministro, transporte y colocación de Brazos Soporte Lavamanos Drywall ref. 718040001 o equivalente y los elementos necesarios para su correcta instalación. | D283: un | E283: 12.00 | F283: $837,264.43 | G283: $10,047,173.16 | I283: 12.00 | K283: $0.00
A284: ESP 8.3.8 | B284: 8.3.8 | C284: Suministro, transporte y colocación de dispensador de toallas de manos en acero inoxidable Ref 706150001 Corona o equivalente, con sistema anti vandálico con llave, incluye juegos para mantenimiento, ranura para conocer la cantidad de toallas restantes para abastecimiento y los elementos necesarios para su correcto funcionamiento. | D284: un | E284: 32.00 | F284: $591,149.55 | G284: $18,916,785.60 | I284: 32.00 | K284: $0.00
... 1302 more rows

Sheet COMPONENTE 1 - TECNOLOGIA
A1: BMS
A2: ITEM | B2: DESCRIPCIÓN | C2: UND | D2: CANTIDAD | E2: VALOR UNITARIO | F2: VALOR PARCIAL
A3: 1 | B3: MÓDULO GESTIÓN DE ENERGÍA, GAS Y AGUA
A4: 1.01 | B4: Licencia principal (licencia de acceso de cliente) | C4: Und | D4: 1 | F4: =E4*D4 -> 0
A5: 1.02 | B5: Licencia de integración | C5: Und | D5: 20 | F5: =E5*D5 -> 0
A6: 1.03 | B6: Servicio analítica para el sistema eléctrico / de energía. | C6: Und | D6: 50 | F6: 0
A7: 1.04 | B7: Software Assurance 3 Year | C7: Und | D7: 5 | F7: 0
A8: 2 | B8: MÓDULO BMS
A9: 2.01 | B9: Licencia Enterprise Server para hasta 10 controladores (incluye 3 estaciones de trabajo) | C9: Und | D9: 1 | F9: =E9*D9 -> 0
A10: 2.02 | B10: SmartConnector licencia que permite conectar a alto nivel módulo | C10: Und | D10: 1 | F10: 0
A11: 2.03 | B11: Transformador 100VA 120 - 24V para el servidor de automatización para el sistema de gestión de edificios (BMS) | C11: Und | D11: 4 | F11: 0
A12: 2.04 | B12: Servidor / controlador principal BMS (solo hardware) | C12: Und | D12: 4 | F12: 0
A13: 2.05 | B13: Software permite integrar hasta 100 dispositivos | C13: Und | D13: 4 | F13: 0
A14: 2.06 | B14: Fuente de alimentación PS-24V | C14: Und | D14: 4 | F14: 0
A15: 2.07 | B15: Base terminal | C15: Und | D15: 4 | F15: 0
A16: 2.08 | B16: Base terminal para fuente de alimentación | C16: Und | D16: 4 | F16: 0
A17: 2.09 | B17: Licencia para habilitacion de Modbus | C17: Und | D17: 4 | F17: 0
A18: 3 | B18: Modulos entrada y salida
A19: 3.01 | B19: Controlador BMS 12A (8UIO, 4 DO) | C19: Und | D19: 8 | F19: =E19*D19 -> 0
A20: 3.02 | B20: Transformador 50VA 120 - 24V | C20: Und | D20: 8 | F20: 0
A21: 3.03 | B21: Panel servidor universal, dispositivo que permite integrar los equipos Modbus RTU (110V-277 VAC-V) | C21: Und | D21: 1 | F21: 0
A22: 4 | B22: MÓDULO DATACENTER
A23: 4.01 | B23: Licencia principal IT Data Center para 25 nodos | C23: Und | D23: 1 | F23: =E23*D23 -> 0
A24: 4.02 | B24: Licencia adicional de 100 nodos para la solución de monitoreo centralizado Data Center | C24: Und | D24: 1 | F24: 0
A25: 4.03 | B25: Licencia activación máquina virtual para la solución de monitoreo centralizado Data Center | C25: Und | D25: 1 | F25: 0
A26: 4.04 | B26: Servicio instación y configuración para la solución de monitoreo centralizado Data Center remoto | C26: Und | D26: 3 | F26: 0
A27: 4.05 | B27: Contrato de soporte / mantenimiento VM por 3 años para Data Center Expert 3 | C27: Und | D27: 1 | F27: 0
A28: 4.06 | B28: Contrato de soporte / mantenimiento VM por 3 años para 25 nodos de Data Center Expert | C28: Und | D28: 1 | F28: 0
A29: 4.07 | B29: Contrato de soporte / mantenimiento VM por 3 años para 100 nodos de Data Center Expert | C29: Und | D29: 1 | F29: 0
A30: 4.08 | B30: Licencia principal IT Advisor para 10 racks | C30: Und | D30: 5 | F30: 0
A31: 4.09 | B31: Licencia adicional módulo capacity 10 racks para IT Advisor | C31: Und | D31: 5 | F31: 0
A32: 4.10 | B32: Contrato de soporte / mantenimiento IT Advisor 3 años 10 racks | C32: Und | D32: 5 | F32: 0
A33: 4.11 | B33: Contrato de soporte / mantenimiento IT Advisor 3 años módulo capacity para 10 racks | C33: Und | D33: 5 | F33: 0
A34: 4.12 | B34: Servicio instalación y configuración | C34: Und | D34: 1 | F34: 0
A35: 4.13 | B35: SERVIDOR DE GESTION DE APLICACIÓN | C35: Und | D35: 1 | F35: 0
A36: 4.14 | B36: Monitor de 22" | D36: 1 | F36: 0
A37: 4.15 | B37: Tablero (4unidades) )NEMA y adecuaciones fisicas para señales MODBUS/eléctrica | C37: Und | D37: 1 | F37: 0
E38: SUBTOTAL | F38: =SUM(F3:F37) -> 0
E39: IVA | F39: =F38*19% -> 0
E40: TOTAL | F40: =F38+F39 -> 0
A43: DATACENTER
A44: ITEM | B44: DESCRIPCIÓN | C44: UND | D44: CANTIDAD | E44: VALOR UNITARIO | F44: VALOR PARCIAL
A45: 1 | B45: Bandeja FiberRunner y sistema AIM (ADMINISTRACIÓN AUTOMATIZADA DE LA INFRAESTRUCTURA). Por cada MDA (Switch de cobre) : (1) paneles inteligentes de cobre, (1) panel inteligente de fibra optica , (12) Patch cord de par trensado inteligente. Incluye: mínimo 108 patchcord de fibra inteligentes monomodo, y 12 patchcord de fibra inteligente multimodo. | C45: gl | D45: 1 | F45: =E45*D45 -> 0 | H45: Bandeja FiberRunner, confinamiento DATACENTER
A46: 2 | B46: Cerradura con control de acceso 49 Racks | C46: und | D46: 49 | F46: =E46*D46 -> 0
A47: 3 | B47: Sensores de Datacenter | C47: und | D47: 49 | F47: =E47*D47 -> 0
A48: 4 | B48: Confinamineto | C48: und | D48: 49 | F48: =E48*D48 -> 0
A49: 5 | B49: Servicio de implementación, puesta en marcha, configuración y documentación de gabinetes por ingeniero especialista y certificado para proyecto C5 | C49: gl | D49: 1 | F49: =E49*D49 -> 0
E50: SUBTOTAL | F50: =SUM(F45:F49) -> 0
E51: IVA | F51: =F50*19% -> 0
E52: TOTAL | F52: =F50+F51 -> 0
A55: RED LAN
A56: ITEM | B56: DESCRIPCIÓN | C56: UND | D56: CANTIDAD | E56: VALOR UNITARIO | F56: VALOR PARCIAL
A57: 1 | B57: Suministro e instalación de Gabinete V800, ancho 800mm, profundidad 1200mm, alto 45RU, puerta frontal simple micro perforada, puerta trasera doble micro perforada, Negro (RAL 9011), ORGANIZADOR TIPO SPOOL VP-SPL, PARA ORGANIZADOR VERTICAL Ref. VP-SPL, KIT TIERRA VP-GRD, PARA GABINETE Y RACK 19";PN" , BANDEJA VERTICAL V-TRAY-150-1-45, 150MM 45U, PARA V600-V800 , Organizadores de cable horizontal, frontal, ranurado con tapa, 2RU, negro R, Organizadores verticales, frontal, ranurado con tapa, 6”, 45RU, negro, instalable en gabinete de piso V800 . PDU, Monitoreada Unit Level EC, 30A, 208V, 4.9kW, Vertical, (36) IEC C13, (6) IEC C19, 10ft power cord con L6-30P, 2 Unidades por Gabinete y se incluyen (87) Blancking panels | C57: und | D57: 8 | F57: =E57*D57 -> 0
A58: 2 | B58: Suministro e instalación de Cable troncal de fibra óptica 12 hilos, MTP-MTP, hembra/hembra, monomodo OS1/OS2, 50 metros, plug y play, polaridad C, color AMARILLO, pulling eye Incluye Certificación y garantía de 20 años de fabricante LightVerse Pro, 1UR, bandeja deslizante, instalación modular, 4 aberturas Incluye Certificación y garantía de 25 años de fabricante. Incluye 4 fibras para sistema de VideoWall entre datacenter y gabinetes de VideoWall y 4 enlaces de cuarto de ingreso proveedores a cada Core. | C58: und | D58: 24 | F58: =E58*D58 -> 0
A59: 3 | B59: Troncal Plug & Play, pérdida ultrabaja, 12 hilos, RazorCore, XGLO, monomodo solución MTP base 12, solución MTP base 12, polaridad B, OS2, 9/125, LSOH-3C, 1 Manga de tracción, Baja pérdida | C59: und | D59: 92 | F59: =E59*D59 -> 0
A60: 4 | B60: Suministro e instalación de Punto de red, Herraje angulado de 24 puertos blindado, para jacks Z-MAX y TERA, vacío, 19", Ref.TM-PNLZ-24-01, JACK TERA T7F-01-1,CAT 7A,BLINDADO, NEGRO, PC TERA T4A-S02M-B06L 4P-RJ45 CAT 6A MARFIL, BOTA AZUL 2M CABLE SFTP 9T7L4-E10 CAT 7A LSZH 1-3-22 VIOLETA 305M 23AWG (82.810 metros Aprox), Patch cord de 4 pares TERA a RJ45, blindado S/FTP, marfil, bota blanca, 3m Incluye puntos de consolidación (63 unidades). Incluye Certificación y garantía de 25 años de fabricante | C60: und | D60: 710 | F60: =E60*D60 -> 0
A61: 5 | B61: Suministro e instalación de Punto de red lug categoría 6S Zplug terminación directa para cámaras, Control de acceso y Access Point, Herraje angulado de 24 puertos blindado, para jacks Z-MAX y TERA, vacío, 19"", JACK TERA T7F-01-1,CAT 7A,BLINDADO, NEGRO, PC TERA T4A-S02M-B06L 4P-RJ45 CAT 6A MARFIL, BOTA AZUL 2M , CABLE SFTP 9T7L4-E10 CAT 7A LSZH 1-3-22 VIOLETA 305M 23AWG (35.329 metros aproximadamente, incluye cable de los puntos de red terminado en Zplug), (1) Patch cord de 4 pares TERA a RJ45 para conexión Patchpanel-Switch, blindado S/FTP, marfil, bota blanca, 3m . Incluye Certificación y garantía de 25 años de fabricante | C61: und | D61: 619 | F61: =E61*D61 -> 0
E62: SUBTOTAL | F62: =SUM(F57:F61) -> 0
E63: IVA | F63: =F62*19% -> 0
E64: TOTAL | F64: =F62+F63 -> 0
A67: GABINETES
A68: ITEM | B68: DESCRIPCIÓN | C68: UND | D68: CANTIDAD | E68: VALOR UNITARIO | F68: VALOR PARCIAL
A69: 1 | B69: Gabinete , 800MM X 1200MM, 45RU, Negro, Organizadores verticales ( se inclyen 479 Blancking panels ) | C69: und | D69: 14 | F69: =E69*D69 -> 0
A70: 2 | B70: PDU monitoreable | C70: und | D70: =28 -> 28 | F70: =E70*D70 -> 0
E71: SUBTOTAL | F71: =SUM(F69:F70) -> 0
E72: IVA | F72: =F71*19% -> 0
E73: TOTAL | F73: =F71+F72 -> 0
A76: RED INALAMBRICA
A77: ITEM | B77: DESCRIPCIÓN | C77: UND | D77: CANTIDAD | E77: VALOR UNITARIO | F77: VALOR PARCIAL
B78: EQUIPOS DE SWITCH PARA WIFI
A79: 2025-01-01 | B79: Equipio de red / 24-port mGig and UPOE, Network Advantage | C79: und | D79: 4 | F79: =E79*D79 -> 0
A80: 2025-02-01 | B80: Modulo SFP / 10GBASE-SR SFP Module, Enterprise-Class | C80: und | D80: 8 | F80: 0
A81: 2025-03-01 | B81: Contrato de soporte y garantía del equipo de red / SHIP NEXT BUS DAY 24port mGig and UPOE Net | C81: und | D81: 4 | F81: 0
A82: 2025-04-01 | B82: Licenciamiento de equipo de red / C9300 DNA Advantage, 24-Port, 5 Year Term License | C82: und | D82: 4 | F82: 0
A83: 2025-05-01 | B83: Fuente de poder redundante / 1100W AC 80+ platinum Config 1 Secondary Power Supply | C83: und | D83: 4 | F83: 0
A84: 2025-06-01 | B84: Módulo de enlace adicional x 8 a 10GE / Catalyst 9300 8 x 10GE Network Module (para conexion sw Core) | C84: und | D84: 4 | F84: 0
B85: EQUIPOS DE RED WI-FI
A86: 2025-07-01 | B86: AP (W6E, tri-band 4x4, XOR) w/Reg-A | C86: und | D86: 2 | F86: =E86*D86 -> 0
A87: 2025-08-01 | B87: AP (W6E, tri-band 4x4) w/Reg-A | C87: und | D87: 26 | F87: =E87*D87 -> 0
A88: 2025-09-01 | B88: Meraki MR Enterprise License, 5YR | C88: und | D88: 28 | F88: =E88*D88 -> 0
B89: SERVICIOS PROFESIONALES
A90: 2025-10-01 | B90: Servicio de implementación, puesta en marcha, configuración, documentación y estabilización de equipos de RED WLAN por ingeniero especialista y certificado por fabricante para proyecto C5, incluye soporte 5 años | C90: gb | D90: 1 | F90: =E90*D90 -> 0
E91: SUBTOTAL | F91: =SUM(F78:F90) -> 0
E92: IVA | F92: =F91*19% -> 0
E93: TOTAL | F93: =F91+F92 -> 0
A96: VMS
A97: ITEM | B97: DESCRIPCIÓN | C97: UND | D97: CANTIDAD | E97: VALOR UNITARIO | F97: VALOR PARCIAL
A98: 2025-01-02 | B98: Licencia Camara | C98: und | D98: 289 | F98: =E98*D98 -> 0
A99: 2025-02-02 | B99: Licencia LPR | C99: und | D99: 4 | F99: 0
A100: 2025-03-02 | B100: Licencia Facial | C100: und | D100: 18 | F100: 0
A101: 2025-04-02 | B101: Licencia Integración Intrusión e Incendio | C101: und | D101: 1 | F101: 0
A102: 2025-05-02 | B102: Licencia Operadores/Administradores (100 usuarios) | C102: und | D102: 1 | F102: 0
A103: 2025-06-02 | B103: Módulo Control de Acceso | C103: und | D103: 1 | F103: 0
A104: 2025-07-02 | B104: Módulo Dashboard | C104: und | D104: 1 | F104: 0
A105: 2025-08-02 | B105: Web Service - API y SDK | C105: und | D105: 1 | F105: 0
A106: 2025-09-02 | B106: Módulo Server Onvif | C106: und | D106: 420 | F106: 0
A107: 2025-10-02 | B107: Módulo SIP | C107: und | D107: 1 | F107: 0
A108: 2025-11-02 | B108: Módulo despachador de eventos para BMS | C108: und | D108: 1 | F108: 0
A109: 2025-12-02 | B109: Estación de trabajo con doble monitor de 22" | C109: und | D109: 6 | F109: 0
A110: 2026-01-02 | B110: Servidor de almacenamiento | C110: und | D110: 2 | F110: 0
A111: 2026-02-02 | B111: Servidor de procesamiento | C111: und | D111: 1 | F111: 0
A112: 2026-03-02 | B112: Servidor de Analíticas | C112: und | D112: 1 | F112: 0
A113: 2026-04-02 | B113: Ethernet to Wiegand Converter Module | C113: und | D113: 1 | F113: 0
A114: 2026-05-02 | B114: Sistema de revisión vehicular inferior | C114: und | D114: 2 | F114: 0
A115: 2026-06-02 | B115: Controlador video y analítica revision de acceso vehicular | C115: und | D115: 2 | F115: 0
A116: 2026-07-02 | B116: Servicios Fabrica | C116: gl | D116: 1 | F116: 0
A117: 2026-08-02 | B117: Soporte (5 años) | C117: gl | D117: 1 | F117: 0
A118: 2026-08-03 | B118: Instalación del subsistema VMS | C118: gl | D118: 1 | F118: 0
E119: SUBTOTAL | F119: =SUM(F98:F118) -> 0
E120: IVA | F120: =F119*19% -> 0
E121: TOTAL | F121: =F119+F120 -> 0
A124: SWITCH
A125: ITEM | B125: DESCRIPCIÓN | C125: UND | D125: CANTIDAD | E125: VALOR UNITARIO | F125: VALOR PARCIAL
B126: SWITCH CORE
A127: 1 | B127: Equipo de red 48-port x 1/10/25G + 4-port 40/100G | C127: und | D127: 2 | F127: =E127*D127 -> 0
A128: 2 | B128: Soporte de fabrica y garantía de fabricante 48port x 11025G 4por | C128: und | D128: 2 | F128: 0
A129: 3 | B129: Soporte de fabrica y garantía sobre el licenciamiento | C129: und | D129: 2 | F129: 0
A130: 4 | B130: Licenciamiento de equiposDNA Advantage 5 años de licencia | C130: und | D130: 2 | F130: 0
A131: 5 | B131: Pluggable SSD storage | C131: und | D131: 2 | F131: 0
A132: 6 | B132: Cable de poder 930W DC Config 4 Power Supply front to back cooling | C132: und | D132: 2 | F132: 0
A133: 7 | B133: Modulo SFP / 10GBASE-LR SFP módulo, Enterprise-Class Switch Wifi | C133: und | D133: 24 | F133: 0
A134: 8 | B134: 100GBASE QSFP Active Optical Cable, 30m | C134: und | D134: 6 | F134: 0
B135: SWITCH DE ACCESO | D135: 0
A136: 9 | B136: Equipo de red de capa de acceso / 48p 1/10/25G, 6p 40/100G, MACsec,SyncE | C136: und | D136: 2 | F136: 0
A137: 10 | B137: Contrato de soporte y garantía de fabricante / CX LEVEL 1 8X7NCD 48p 1/10/25G, 6p 40/100G, MACse | C137: und | D137: 2 | F137: 0
A138: 11 | B138: Módulo de memoria adicional / memoria de 16GB para Switches | C138: und | D138: 2 | F138: 0
A139: 12 | B139: Licencia de equipo de red / DCN Advantage Term N9300 XF, 3Y | C139: und | D139: 2 | F139: 0
A140: 13 | B140: Equipo de red de capa de acceso / con 48p 100M/1/10GT & 6p 40/100G QSFP28+ | C140: und | D140: 30 | F140: 0
A141: 14 | B141: Contrato de soporte y garantía de fabricante / CX LEVEL 1 8X7NCD con 48p 100M/1/10GT 6p 40 | C141: und | D141: 30 | F141: 0
A142: 15 | B142: Licencia de equipo de red / DCN Advantage Term N9300 XF, 3Y | C142: und | D142: 30 | F142: 0
A143: 16 | B143: 40GBASE Active Optical Cable, 30m | C143: und | D143: 30 | F143: 0
A144: 17 | B144: Modulo SFP/ 1000BASE-SX short wavelength; con DOM | C144: und | D144: 4 | F144: 0
B145: SWITCH DE ADMINISTRACIÓN | D145: 0
A146: 18 | B146: Equipo de Red / 24-port data only, 4 x 1G, Network Essentials | C146: und | D146: 16 | F146: 0
A147: 19 | B147: Contrato de soporte y garantía del equipo de red / CX LEVEL 1 8X7NCD 24port data 4 x 1G Net | C147: und | D147: 16 | F147: 0
A148: 20 | B148: Contrato de soporte y garantia de licenciamiento / CX LEVEL 1 SW SUB DNA Ess | C148: und | D148: 16 | F148: 0
A149: 21 | B149: Licenciamiento de equipo de red / DNA Essentials, 24-port, 3 Year Term license | C149: und | D149: 16 | F149: 0
A150: 22 | B150: Módulo de apilamiento de equipo de red / Stack Module | C150: und | D150: 16 | F150: 0
B151: ACCESO LAN | D151: 0
A152: 23 | B152: Equipio de red /Catalyst 9300 48-port PoE+, Network Advantage | C152: und | D152: 38 | F152: 0
A153: 24 | B153: Contrato de soporte y garantía del equipo de red / 48port PoE Network Adva | C153: und | D153: 38 | F153: 0
A154: 25 | B154: Licenciamiento de equipo de red / C9300 DNA Advantage, 48-Port, 5 Year Term License | C154: und | D154: 38 | F154: 0
A155: 26 | B155: Fuente de poder redundante / 1100W AC 80+ platinum Config 1 Secondary Power Supply | C155: und | D155: 38 | F155: 0
A156: 27 | B156: Cable de apilamiento de equipo de red / 50CM Type 1 Stacking Cable | C156: und | D156: 38 | F156: 0
A157: 28 | B157: Cable de red para fuente redundante / Stack Power Cable 30 CM | C157: und | D157: 38 | F157: 0
A158: 29 | B158: Módulo de enlace adicional x 8 a 10GE / 8 x 10GE Network Module | C158: und | D158: 38 | F158: 0
A159: 30 | B159: Módulo SFP/ 10GBASE-LR SFP Module, Enterprise-Class | C159: und | D159: 28 | F159: 0
A160: 31 | B160: Servicio de implementación, puesta en marcha, configuración, documentación y estabilización de equipos de RED y DATACENTER por ingeniero especialista y certificado por fabricante para proyecto C5, soporte 5 años | C160: gb | D160: 1 | F160: 0
E161: SUBTOTAL | F161: =SUM(F126:F160) -> 0
E162: IVA | F162: =F161*19% -> 0
E163: TOTAL | F163: =F161+F162 -> 0
A166: CCTV
A167: ITEM | B167: DESCRIPCIÓN | C167: UND | D167: CANTIDAD | E167: VALOR UNITARIO | F167: VALOR PARCIAL
B168: CÁMARA MINIDOMO IP
A169: 2025-01-01 | B169: Domo varifocal de 2 MP con IR y aprendizaje profundo | C169: und | D169: 99 | F169: =E169*D169 -> 0
A170: 2025-02-01 | B170: Domo varifocal de 4 MP con deep learning | C170: und | D170: 2 | F170: 0
A171: 2025-03-01 | B171: Domo varifocal de 8 MP con infrarrojos y deep learning | C171: und | D171: 5 | F171: 0
A172: 2025-04-01 | B172: Domo para interior de 2 MP con deep learning | C172: und | D172: 0 | F172: 0
A173: 2025-05-01 | B173: Domo para interior de 2 MP con infrarrojos y deep learning | C173: und | D173: 1 | F173: 0
A174: 2025-06-01 | B174: Multisensor de 13 MP Cobertura de 180° en horizontal y 90° en vertical | C174: und | D174: 1 | F174: 0
B175: CÁMARA 360 IP | D175: 0
A176: 2025-07-01 | B176: Domo integrado de 6 MP con vista panorámica de 360° | C176: und | D176: 1 | F176: 0
A177: 2025-08-01 | B177: Domo para exteriores de 6 MP con vista panorámica de 360° y captura de audio | C177: und | D177: 40 | F177: 0
A178: 2025-09-01 | B178: Domo de 12 MP con vista de 360° y deep learning | C178: und | D178: 7 | F178: 0
A179: 2025-10-01 | B179: Cámara multidireccional de 4x5 MP con tecnología de IA | C179: und | D179: 1 | F179: 0
B180: CÁMARA PTZ IP o MULTISENSOR | D180: 0
A181: 2025-11-01 | B181: Cámara de 360° con control PTZ de un solo clic 4 sensores de 5 MP, resolución total de total 20 MP | C181: und | D181: 5 | F181: 0
A182: 2025-12-01 | B182: Cámara de 360° con control PTZ con un solo clic 4 sensores de 4 MP, resolución total de 16 MP | C182: und | D182: 6 | F182: 0
A183: 1.13 | B183: PTZ para exterior con UHD 4K | C183: und | D183: 1 | F183: 0
B184: CÁMARA DOS LENTES IP | D184: 0
A185: 1.14 | B185: Sensor dual con IR de 360° y deep learning | C185: und | D185: 45 | F185: 0
A186: 1.15 | B186: Cámara de doble sensor de 2x8MP alimentada por IA | C186: und | D186: 2 | F186: 0
B187: CÁMARA BULLET IP | D187: 0
A188: 1.16 | B188: Cámara fija tipo bala de 2 MP , 9mm | C188: und | D188: 2 | F188: 0
A189: 1.17 | B189: Joystick para gestión profesional de cámaras y vídeos | C189: und | D189: 2 | F189: 0
E190: SUBTOTAL | F190: =SUM(F168:F189) -> 0
E191: IVA | F191: =F190*19% -> 0
E192: TOTAL | F192: =F190+F191 -> 0
A195: EVAC
A196: ITEM | B196: DESCRIPCIÓN | C196: UND | D196: CANTIDAD | E196: VALOR UNITARIO | F196: VALOR PARCIAL
A197: 1 | B197: Suministro, instalación, programación y puesta a punto de Controlador del sistema | C197: und | D197: 2 | F197: =E197*D197 -> 0
A198: =A197+1 -> 2 | B198: Suministro, instalación, programación y puesta a punto de Fuente alimentación multifunción | C198: und | D198: 4 | F198: =E198*D198 -> 0
A199: 3 | B199: Suministro, instalación, programación y puesta a punto de Amplificador, 600W, 8 canales | C199: und | D199: 12 | F199: 0
A200: 4 | B200: Suministro, instalación, programación y puesta a punto de Módulo de interfaz de control, 16 por 8 | C200: und | D200: 4 | F200: 0
A201: 5 | B201: Suministro, instalación, programación y puesta a punto de Switch Ethernet, 8 por PoE | C201: und | D201: 4 | F201: 0
A202: 6 | B202: Suministro, instalación, programación y puesta a punto de Dispositivo de fin de línea | C202: und | D202: 86 | F202: 0
A203: 7 | B203: Suministro, instalación, programación y puesta a punto de Estación llamada LCD sobremesa | C203: und | D203: 3 | F203: 0
A204: 8 | B204: Suministro, instalación, programación y puesta a punto de Estación llamada LCD montaje pared | C204: und | D204: 1 | F204: 0
A205: 9 | B205: Suministro, instalación, programación y puesta a punto de Extensión estación de llamada | C205: und | D205: 10 | F205: 0
A206: 10 | B206: Suministro, Instalación, y puesta a punto de Altavoz de Cielo Tipo 1 (Cielo 1) | C206: und | D206: 278 | F206: 0
A207: 11 | B207: Suministro, Instalación, y puesta a punto de Altavoz de Cielo Tipo 2 (Cielo 2) | C207: und | D207: 83 | F207: 0
A208: 12 | B208: Suministro, Instalación, y puesta a punto de Altavoz de Cielo Tipo 3 (Cielo 3) | C208: und | D208: 69 | F208: 0
A209: 13 | B209: Suministro, Instalación, y puesta a punto de Altavoz de Muro Tipo 1 (Muro 1) | C209: und | D209: 73 | F209: 0
A210: 14 | B210: Suministro, Instalación, y puesta a punto de Altavoz de Muro Tipo 2 (Muro 2) | C210: und | D210: 12 | F210: 0
A211: 15 | B211: Suministro, Instalación, y puesta a punto de Altavoz de Muro Tipo 3 (Muro 3) | C211: und | D211: 18 | F211: 0
A212: 16 | B212: Suministro, Instalación, y puesta a punto de Altavoz de Muro Tipo 4 (Muro 4) | C212: und | D212: 2 | F212: 0
A213: 17 | B213: Suministro, Instalación, Programación y puesta a punto de amplificador 2 x 1400 watts | C213: und | D213: 1 | F213: 0
A214: 18 | B214: Suministro, Instalación, Programación y puesta a punto de sensor de ruido ambiental | C214: und | D214: 2 | F214: 0
A215: 19 | B215: Suministro, Instalación, y puesta a punto de Módulo fuente de Alimentación | C215: und | D215: 4 | F215: 0
A216: 20 | B216: Suministro, Instalación, y puesta a punto de Módulo domo para altavoz en cielo con conector cerámico | C216: und | D216: 428 | F216: 0
... 268 more rows

Sheet RESUMEN PROYECTADO
A3: FORMATO PROPUESTA ECONÓMICA
B5: No. ITEM | C5: DESCRIPCIÓN ARTÍCULO | D5: UNIDAD DE MEDIDA | E5: CANTIDAD | F5: VALOR TECHO | H5: VALOR OFERTADO
B6: 1 | C6: COMPONENTE 1 - OBRA PROYECTADO - COSTO DIRECTO | D6: GL | E6: 1 | F6: ='COMPONENTE 1 - OBRA PROYECTADO'!G111+'COMPONENTE 1 - OBRA PROYECTADO'!G112 -> COP 2,649,474,271 | H6: ='COMPONENTE 1 - OBRA PROYECTADO'!K111+'COMPONENTE 1 - OBRA PROYECTADO'!K112 -> 0
B7: 2 | C7: MOBILIARIO - COSTO TOTAL | D7: GL | E7: 1 | F7: ='COMPONENTE 1 - OBRA PROYECTADO'!G113 -> COP 13,401,523,507 | H7: ='COMPONENTE 1 - OBRA PROYECTADO'!K113 -> 0
B8: 3 | C8: ADMINISTRACION | D8: % | E8: A | F8: ='COMPONENTE 1 - OBRA'!G1815 -> 15.36% | G8: =($F$6)*F8 -> COP 406,959,248 | H8: =($H$6+$H$7)*F8 -> 0
B9: 4 | C9: IMPREVISTOS | D9: % | E9: I | F9: 2.00% | G9: =($F$6)*F9 -> COP 52,989,485 | H9: =($H$6+$H$7)*F9 -> 0
B10: 5 | C10: UTILIDAD | D10: % | E10: U | F10: ='COMPONENTE 1 - OBRA'!G1816 -> 5.00% | G10: =($F$6)*F10 -> COP 132,473,714 | H10: 0
B11: 6 | C11: POLIZAS | D11: GL | E11: 1 | F11: COP 31,725,141
B12: 8 | C12: REAJUSTES INDEXACIÓN (AJUSTE CAMBIO DE AÑOS) | D12: GL | E12: 1 | F12: COP 203,445,075
B13: TOTAL OBRA | F13: =F6+F7+G8+G9+G10+F11+F12 -> COP 16,878,590,441 | H13: =SUM(H6:H12) -> 0
G14: =G8+G9+G10+F11+F12 -> COP 827,592,663
B16: No. ITEM | C16: DESCRIPCIÓN ARTÍCULO | D16: UNIDAD DE MEDIDA | E16: CANTIDAD | F16: VALOR UNITARIO TECHO INCLUIDO IVA | H16: VALOR UNITARIO OFERTADO INCLUIDO IVA
B17: 9 | C17: BMS | D17: GL | E17: 1 | F17: COP 1,406,514,773.39 | H17: ='COMPONENTE 1 - TECNOLOGIA'!F40 -> 0
B18: 10 | C18: Datacenter | D18: GL | E18: 0 | F18: COP 1,722,664,621.79 | H18: ='COMPONENTE 1 - TECNOLOGIA'!F52 -> 0
B19: 11 | C19: Red Lan | D19: GL | E19: 0 | F19: COP 3,615,307,527.51 | H19: ='COMPONENTE 1 - TECNOLOGIA'!F64 -> 0
B20: 12 | C20: Gabinetes | D20: GL | E20: 0 | F20: COP 2,200,575,329.61 | H20: ='COMPONENTE 1 - TECNOLOGIA'!F73 -> 0
B21: 13 | C21: Red Inalambrica | D21: GL | E21: 0 | F21: COP 1,735,484,410.37 | H21: ='COMPONENTE 1 - TECNOLOGIA'!F93 -> 0
B22: 14 | C22: VMS | D22: GL | E22: 0 | F22: COP 2,138,192,255.61 | H22: ='COMPONENTE 1 - TECNOLOGIA'!F121 -> 0
B23: 15 | C23: Switch | D23: GL | E23: 0 | F23: COP 14,224,480,322.49 | H23: ='COMPONENTE 1 - TECNOLOGIA'!F163 -> 0
B24: 16 | C24: CCTV | D24: GL | E24: 0 | F24: COP 1,509,027,134.45 | H24: ='COMPONENTE 1 - TECNOLOGIA'!F192 -> 0
B25: 17 | C25: EVAC | D25: GL | E25: 0 | F25: COP 2,683,379,571.04 | H25: ='COMPONENTE 1 - TECNOLOGIA'!F234 -> 0
B26: 18 | C26: Multimedia | D26: GL | E26: 0 | F26: COP 11,628,705,767.52 | H26: ='COMPONENTE 1 - TECNOLOGIA'!F287 -> 0
B27: 19 | C27: Acceso | D27: GL | E27: 1 | F27: COP 1,186,753,275.45 | H27: =('COMPONENTE 1 - TECNOLOGIA'!F313*3+'COMPONENTE 1 - TECNOLOGIA'!F314)*1.19 -> 0
B28: 20 | C28: Instrusion | D28: GL | E28: 0 | F28: COP 478,013,573.51 | H28: ='COMPONENTE 1 - TECNOLOGIA'!F334 -> 0
B29: 21 | C29: Visitantes | D29: GL | E29: 1 | F29: COP 272,017,544.16 | H29: ='COMPONENTE 1 - TECNOLOGIA'!F345 -> 0
B30: 22 | C30: Telefonia | D30: GL | E30: 0 | F30: COP 682,646,759.15 | H30: ='COMPONENTE 1 - TECNOLOGIA'!F363 -> 0
B31: 23 | C31: Enlace_PTP | D31: GL | E31: 0 | F31: COP 258,668,247.33 | H31: ='COMPONENTE 1 - TECNOLOGIA'!F374 -> 0
B32: 24 | C32: VideoWall | D32: GL | E32: 1 | F32: COP 30,445,416,865.07 | H32: ='COMPONENTE 1 - TECNOLOGIA'!F424 -> 0
B33: 25 | C33: Enlace F.O | D33: GL | E33: 0 | F33: COP 947,528,726.62 | H33: ='COMPONENTE 1 - TECNOLOGIA'!F470 -> 0
B34: 26 | C34: Traslado videowall y controladora | D34: GL | E34: 0 | F34: COP 1,416,211,639.26 | H34: ='COMPONENTE 1 - TECNOLOGIA'!F479 -> 0
B35: 27 | C35: Señal Etica | D35: GL | E35: 1 | F35: COP 2,800,881,220.36 | H35: ='COMPONENTE 1 - TECNOLOGIA'!F504 -> 0
B36: TOTAL TECNOLOGIA | F36: =E17*F17+E18*F18+E19*F19+E20*F20+E21*F21+E22*F22+E23*F23+E24*F24+E25*F25+E26*F26+E27*F27+E28*F28+E29*F29+E30*F30+E31*F31+E32*F32+E33*F33+E34*F34+E35*F35 -> $ 36,111,583,678 | H36: =SUM(H17:H34) -> 0
B40: GRAN TOTAL | F40: =F36+F13 -> $ 52,990,174,120
B44: FIRMA DEL REPRESENTANTE LEGAL O APODERADO
B45: NOMBRE DEL PROPONENTE:
B46: NOMBRE DEL REPRESENTANTE LEGAL:
B47: DIRECCIÓN:
B48: CORREO ELECTRÓNICO:
B49: TELÉFONO:
C54: NOTAS ACLARATORIAS:
B55: 1 | C55: PÓLIZAS | D55: El pago de las pólizas estará sujeto a la presentación de la constancia de pago de la prima por parte del contratista, quien podrá solicitar a la ESU el reembolso de dicho valor mediante el acta de pago correspondiente que el mismo elabore y emita.
B56: 2 | C56: REAJUSTE POR CAMBIO DE AÑO | D56: El pago se ajustará en cada acta de pago, mediante la aplicación de la fórmula polinómica de reajuste definida para el proyecto, con base en los indicadores oficiales publicados por CAMACOL.

Sheet COMPONENTE 1 - OBRA PROYECTADO
B8: ANEXO NO 19 PRECIOS Y CANTIDADES
A11: Especificaciones | B11: EDT | C11: Descripción | D11: Unidad | E11: Cantidad | F11: Costo unitario | G11: Total | I11: Cantidad | J11: Costo unitario | K11: Total | M11: Cumple | N11: No Cumple
B13: 13.1.0 | C13: SISTEMA FOTOVOLTAICO - PANELES SOLARES
A14: ESP 13.1.1 | B14: 13.1.1 | C14: Suministro transporte e instalación de sistema solar fotovoltaico a todo costo, incluye paneles solares JA SOLAR 570Wp o equivalentes, Inversor GROWATT MAC 70KTL3-X MV,Cable solar, conectores MC4 -- [pares], perfiles reguladores Alurack 4,2 m, tornillos galvanizados autoperforantes 2",ganchos, arandelasy tuercas, MCLAMS ALURACK, uniones ALURACK, bronco y tela, caja metálica 12x12, caja plástica 15x15, E CLAMPS, L alurack, herraje de paso 15x15, tubería coraza 2", tubería IMC 2", Tuercas y contratuercas 2" con polo a tierra, tubería PVC 2", curva PVC 2", tubería EMT 2", Curva PVC 2", tubería EMT 3 1/2", curva emt 3 1/2", jumpers (20cm x 40 uni), cableado # 1/0 AWG Cu THHN/THWN-2, # 4/0 AWG Cu THHN/THWN-2, #6 DESNUDO Cu THHN/THWN-2, #2 DESNUDO Cu THHN/THWN-2, varilla de cooperwell, conector tipo tornillo, grapa tornillo partido, conector en C #1/0, tablero AC 12 ctos, cemento, arena, grava, prensa stopa PG-29, breaker 3X125A Caja Moleada, riel omega, caja bornera AC 160A, espuma sikaboom,barraje para neutro, barraje de cobre para totalizador, barraje para tierra,cinta negra y autofunente, tapones plástico cuadrados, tapones plásticos reguladores, conectores de resortes rojos, conectores de resortes azules, cintas de colores, cabeza lenteja media pulgada autoperforante 2", grava doble ala de 2", cinta badit y hebillas, cubre filo, percha y yoyo, pega loca, conector curvo de coraza 2", conectores OB1010 y todos los elementos necesario para su correcto funcionamiento. incluye aprobación por EPM. TRM $4298.31 COP (24-04-25), fuente: https://www.dolar-colombia.com/mes/2025-04 | D14: un | E14: 1 | F14: $436,122,663.16 | G14: =F14*E14 -> $436,122,663.16 | I14: 1 | K14: =J14*I14 -> $0.00
C16: TOTAL DE SISTEMA FOTOVOLTAICO - PANELES SOLARES | G16: =G14 -> $436,122,663.16 | K16: =K14 -> $0.00
B18: 11.1.2 | C18: CIELOS
A19: ESP 11.1.2.1 | B19: 11.1.2.1 | C19: Suministro, transporte e instalación de CIELO FALSO EN PLACA DE FIBROCEMENTO (SUPERBOARD) 8mm. Incluye suministro, transporte e instalación de placa de fibrocemento de 8mm, masilla, tornillos, perfiles para estructura de soporte, pintura epóxica color blanco puro RAL 90-10 + dilatación perimetral de 1 cm., accesorios, estuco plástico, pintura tres manos o las necesarias hasta obtener una superficie pareja, homogénea y todos los elementos necesarios para su correcta instalación. | D19: m2 | E19: 520.32 | F19: $176,005.68 | G19: =F19*E19 -> $91,579,275.42 | I19: 520.32 | K19: =J19*I19 -> $0.00
A20: ESP 11.1.2.2 | B20: 11.1.2.2 | C20: Suministro, transporte e instalación de CIELO FALSO EN PANEL YESO (DRYWALL) 1/2". Incluye suministro, transporte e instalación de lámina en panel yeso de 1/2", masilla, tornillos, perfiles para estructura de soporte, instalación con dilatación perimetral en perfil de 1cm., accesorios, estuco plástico, pintura vinilo tipo 2 tres manos o las necesarias hasta obtener una superficie pareja, homogénea, color a definir según aprobación de la entidad o interventoría y todos los elementos necesarios para su correcta instalación. | D20: m2 | E20: 543.42 | F20: $91,450.08 | G20: $49,695,802.47 | I20: 543.42 | K20: $0.00
A21: ESP 11.1.2.3 | B21: 11.1.2.3 | C21: Suministro, transporte e instalación de Acabado en cielos en Acobarda Pete, marca Acobarda Pete de 12 mm de espesor o similar en cielos descolgado por medio de guaya de acero. Densidad del Acobarda: 191,6 kg/m3, incluye disposición de la lámina de acuerdo a diseño, lamina cortada a medida, corte sencillo, tonalidad: acorde a disponibilidad en catálogo, instalación: descolgado de cielos con guaya hasta 1m de altura, M.O (mano de obra) Altura de instalación: 3 metros de altura y los materiales necesarios para su correcto funcionamiento. | D21: m2 | E21: 150.45 | F21: $476,039.00 | G21: $71,620,067.55 | I21: 150.45 | K21: $0.00
A22: ESP 11.1.2.4 | B22: 11.1.2.4 | C22: suministro, transporte e instalación de Cielo lineal en perfiles Baffle 100 x 25 cm Ref. de Hunter DougloOas nacional o equivalente. Separación porta panel cada 10cm + perfil en C de sustentación + cuelga para soporte de panel. Color gris acero 6943 brillo 15%. y los elementos necesarios para su correcto funcionamiento. | D22: m2 | E22: 649.19 | F22: $485,502.15 | G22: $315,183,140.76 | I22: 649.19 | K22: $0.00
A23: ESP 11.1.2.5 | B23: 11.1.2.5 | C23: Suministro, transporte e instalación (remates y anclajes) de Cielo en malla expandida de aluzinc Metal Screen de Hunter DougloOas o equivalente, terminación no aplicada. Cielo lineal en perfiles Baffle 100 x 25 cm Ref. de Hunter DougloOas nacional o equivalente. Separación porta panel cada 10cm + perfil en C de sustentación + cuelga para soporte de panel. Color gris acero 6943 brillo 15%. Color según diseño y los elementos necesarios para su correcto funcionamiento. | D23: m2 | E23: 1,426.89 | F23: $413,173.88 | G23: $589,553,677.63 | I23: 1,426.89 | K23: $0.00
A24: ESP 11.1.2.6 | B24: 11.1.2.6 | C24: Suministro, transporte e instalación de Cielo en Drywall cleaneo akustik Kauf circular aleatoria plus de alta absorción acústica. Placa de yeso 12,5 mm, marfil visible, velo blanco de fibra acústica, oculta instalaciones y los elementos necesarios para su correcto funcionamiento. | D24: m2 | E24: 55.44 | F24: $440,325.68 | G24: $24,413,262.70 | I24: 55.44 | K24: $0.00
A25: ESP 11.1.2.7 | B25: 11.1.2.7 | C25: Suministro, transporte e instalación DE Cielo Tubrise en aluzinc 4 mm montaje vertical Ref. de Hunter DougloOas o equivalente. Color según diseño. Tubrise vertical longitud 60 cms con terminación perforada. Perforaciones #118 diámetro 200 15% abierto. Sistema de montaje con parrilla de sujeción en malla 100x100 + clip de sujeción en acero inoxidable + escuadra + perno en u en acero galvanizado Separación entre tubos metálicos 60cm.y los elementos necesarios para su correcto funcionamiento. | D25: m2 | E25: 121.80 | F25: $1,042,265.18 | G25: $126,947,898.92 | I25: 121.80 | K25: $0.00
A26: ESP 11.1.2.8 | B26: 11.1.2.8 | C26: Suministro, transporte e instalación de Cielo en paneles de fieltro lineales HeartFelt Ref. de Hunter DougloOas o equivalente. Paneles de sección rectangular 40mmx55mm instalados sobre porta panel paso 100 + cuelga rígida. Modulación cada 100mm. Colores crema 7575, marrón claro 7576, marrón medio 7577. y los elementos necesarios para su correcto funcionamiento. | D26: m2 | E26: 184.85 | F26: $878,685.68 | G26: $162,425,047.95 | I26: 184.85 | K26: $0.00
A27: ESP 11.1.2.9 | B27: 11.1.2.9 | C27: Suministro, transporte e instalación de panel Ecophon Solo Matrix descolgado en 30% del espacio. Y los elementos necesarios para su correcto funcionamiento. | D27: m2 | E27: 2,214.54 | F27: $353,090.68 | G27: $781,933,434.49 | I27: 2,214.54 | K27: $0.00
C28: TOTAL DE CIELOS | G28: =SUM(G19:G27) -> $2,213,351,607.90 | K28: =SUM(K19:K27) -> $0.00
B31: 21.0.0 | C31: MOBILIARIO
B33: 21.1.0 | C33: MOBILIARIO N1
A34: ESP 21.1.0 | B34: 21.1.1 | C34: Suministro y transporte de Módulo operativo de 1.20 X 0.60 m para un usuario, hecho a base de estructura metálica con superficie recta recortada y cantos termofusionados con groumets, acabados en melamina blanca de 28mm, incluye pasacables interno (charola horizontal) con 6 espacios para instalaciones y charola (vertical) lateral para subir, ocultar instalaciones y charola para cables, accesorios porta CPU, porta monitor doble. | D34: Pza. | E34: 7.00 | F34: $2,474,653.10 | G34: =F34*E34 -> $17,322,571.70 | I34: 7.00 | K34: =J34*I34 -> $0.00
A35: ESP 21.1.0 | B35: 21.1.2 | C35: Suministro y transporte de Módulo operativo con credenza lateral 2.00 x 1.50 hecho a base de estructura metálica con superficie recta recortada y cantos termofusionados. Acabados en melamina blanca de 28 mm. Incluye pasacables interno (charola horizontal) con 6 espacios para instalaciones , groumets y charola (vertical) lateral para subir y ocultar instalaciones. | D35: Pza. | E35: 1.00 | F35: $3,087,003.50 | G35: =F35*E35 -> $3,087,003.50 | I35: 1.00 | K35: =J35*I35 -> $0.00
A36: ESP 21.1.0 | B36: 21.1.3 | C36: Suministro y transporte de Módulo operativo con credenza lateral 1.60 x 1.50 hecho a base de estructura metálica con superficie recta recortada y cantos termofusionados. Acabados en melamina blanca de 28 mm. Incluye pasacables interno (charola horizontal) con 6 espacios para instalaciones , groumets y charola (vertical) lateral para subir y ocultar instalaciones. | D36: Pza. | E36: 4.00 | F36: $5,088,190.00 | G36: =F36*E36 -> $20,352,760.00 | I36: 4.00 | K36: =J36*I36 -> $0.00
A37: ESP 21.1.0 | B37: 21.1.4 | C37: Suministro y transporte de Módulo operativo de 1.70 X 0.60 m para un usuario, hecho a base de estructura metálica con superficie recta recortada y cantos termofusionados con groumets, acabados en melamina blanca de 28mm,incluye pasacables interno (charola horizontal) con 6 espacios para instalaciones, charola (vertical) lateral para subir, ocultar instalaciones y charola para cables, accesorios porta CPU, porta monitor doblen. | D37: Pza. | E37: 4.00 | F37: $3,535,219.00 | G37: =F37*E37 -> $14,140,876.00 | I37: 4.00 | K37: =J37*I37 -> $0.00
A38: ESP 21.1.0 | B38: 21.1.5 | C38: Suministro y transporte de Módulo operativo de 1.90 X 0.70 m para un usuario, hecho a base de estructura metálica con superficie recta recortada y cantos termofusionados con groumets, acabados en melamina blanca de 28mm, incluye pasacables interno (charola horizontal) con 6 espacios para instalaciones, charola (vertical) lateral para subir, ocultar instalaciones y charola para cables, accesorios porta CPU, porta monitor doble. | D38: Pza. | E38: 1.00 | F38: $3,415,274.00 | G38: =F38*E38 -> $3,415,274.00 | I38: 1.00 | K38: =J38*I38 -> $0.00
C40: TOTAL DE MOBILIARIO N1 | G40: =SUM(G34:G38) -> $58,318,485.20 | K40: =SUM(K34:K38) -> $0.00
B43: 21.4.0 | C43: MOBILIARIO N5
A44: ESP 21.4.0 | B44: 21.4.1 | C44: Módulo operativo de 1.40 X 0.70 m para un usuario, hecho a base de estructura metálica con superficie recta recortada y cantos termofusionados con groumets, acabados en melamina blanca de 28mm Incluye pasacables interno (charola horizontal) con 6 espacios para instalaciones, charola (vertical) lateral para subir, ocultar instalaciones y charola para cables, accesorios porta CPU, porta monitor doble. | D44: Pza. | E44: 50.00 | F44: $1,805,487.00 | G44: =F44*E44 -> $90,274,350.00 | I44: 50.00 | K44: =J44*I44 -> $0.00
A45: ESP 21.4.0 | B45: 21.4.2 | C45: Módulo operativo de 1.90 X 0.70 m para un usuario, hecho a base de estructura metálica con superficie recta recortada y cantos termofusionados con groumets, acabados en melamina blanca de 28mm, incluye pasacables interno (charola horizontal) con 6 espacios para instalaciones y charola (vertical) lateral para subir, ocultar instalaciones y charola para cables, accesorios porta CPU, porta monitor doble. | D45: Pza. | E45: 8.00 | F45: $3,415,274.00 | G45: $27,322,192.00 | I45: 8.00 | K45: $0.00
A46: ESP 21.4.0 | B46: 21.4.3 | C46: Escritorio Ejecutivo con credenza lateral 1.35 x 1.50 hecho a base de estructura metálica con superficie recta recortada y cantos termofusionados. Acabados en melamina blanca de 28 mm. Incluye pasacables interno (charola horizontal) con 6 espacios para instalaciones , groumets y charola (vertical) lateral para subir y ocultar instalaciones. | D46: Pza. | E46: 3.00 | F46: $5,088,190.00 | G46: $15,264,570.00 | I46: 3.00 | K46: $0.00
A47: ESP 21.4.0 | B47: 21.4.4 | C47: Mesa rectangular de 1.20 X 0.80 m para 4 usuarios, con cubierta en melamina con canto PVC, estructura metálica, terminado con pintura electrostática. | D47: Pza. | E47: 38.00 | F47: $1,584,536.00 | G47: $60,212,368.00 | I47: 38.00 | K47: $0.00
A48: ESP 21.4.0 | B48: 21.4.5 | C48: Mesa circular para 4 personas de 1.00 de diámetro, con cubierta en melamina con canto PVC, estructura metálica, terminado con pintura electrostática. | D48: Pza. | E48: 15.00 | F48: $1,786,548.00 | G48: $26,798,220.00 | I48: 15.00 | K48: $0.00
A49: ESP 21.4.0 | B49: 21.4.6 | C49: Silla Operativa, Ergonómica y para trabajo 24x24, con descansabrazos, base cinco puntos, mecanismo reclinable, protección lumbar y ajuste de altura, cabecera, base y estructura de polipropileno, respaldo y asiento tapizados en tela mesh color negro. | D49: Pza. | E49: 68.00 | F49: $2,929,182.00 | G49: $199,184,376.00 | I49: 68.00 | K49: $0.00
A50: ESP 21.4.0 | B50: 21.4.7 | C50: Silla Visita (Interlocutoras) con brazos, con base y estructura de polipropileno de 4 puntos fijos, respaldo y asiento tapizados en tela mesh. (Acabados en conjunto con la silla directiva) y metal en cromo. | D50: Pza. | E50: 6.00 | F50: $795,424.00 | G50: $4,772,544.00 | I50: 6.00 | K50: $0.00
C52: TOTAL DE MOBILIARIO N5 | G52: =SUM(G44:G50) -> $423,828,620.00 | K52: =SUM(K44:K50) -> $0.00
B54: 21.5.0 | C54: MOBILIARIO N6
A55: ESP 21.5.0 | B55: 21.5.1 | C55: Suministro y transporte de Módulo operativo de 1.70 X 0.90 m (MOBILIARIO NORMAL) para un usuario, hecho a base de estructura metálica con superficie recta recortada y cantos termofusionados con groumets, Acabados en melamina blanca de 28mm Incluye pasacables interno (charola horizontal) con 6 espacios para instalaciones y charola (vertical) lateral para subir y ocultar instalaciones y charola para cables. | D55: Pza. | E55: 47.00 | F55: $3,459,463.99 | G55: =F55*E55 -> $162,594,807.53 | I55: 47.00 | K55: =J55*I55 -> $0.00
A56: ESP 21.5.0 | B56: 21.5.2 | C56: Suministro y transporte Módulo operativo de 1.40 X 0.70 m (MOBILIARIO NORMAL) para un usuario, hecho a base de estructura metálica con superficie recta recortada y cantos termofusionados con groumets, Acabados en melamina blanca de 28mm Incluye pasacables interno (charola horizontal) con 6 espacios para instalaciones y charola (vertical) lateral para subir y ocultar instalaciones y charola para cables y accesorios porta CPU, porta monitor doble. | D56: Pza. | E56: 38.00 | F56: $2,802,923.00 | G56: $106,511,074.00 | I56: 38.00 | K56: $0.00
A57: ESP 21.5.0 | B57: 21.5.3 | C57: Suministro y transporte Módulo operativo con credenza lateral 1.35 x 1.50 hecho a base de estructura metálica con superficie recta recortada y cantos termofusionados. Acabados en melamina blanca de 28 mm. Incluye pasacables interno (charola horizontal) con 6 espacios para instalaciones , groumets y charola (vertical) lateral para subir y ocultar instalaciones. (MOBILIARIO NORMAL) | D57: Pza. | E57: 3.00 | F57: $5,088,190.00 | G57: $15,264,570.00 | I57: 3.00 | K57: $0.00
A58: ESP 21.5.0 | B58: 21.5.4 | C58: Suministro y transporte de Silla Operativa, Ergonómica y para trabajo 24x24, con descansabrazos, base cinco puntos, mecanismo reclinable, protección lumbar y ajuste de altura, cabecera, base y estructura de polipropileno, respaldo y asiento tapizados en tela mesh color negro. (MOBILIARIO NORMAL) | D58: Pza. | E58: 88.00 | F58: $2,929,182.00 | G58: $257,768,016.00 | I58: 88.00 | K58: $0.00
A59: ESP 21.5.0 | B59: 21.5.5 | C59: Suministro y transporte de Silla Visita (Interlocutoras) con brazos, con base y estructura de polipropileno de 4 puntos fijos, respaldo y asiento tapizados en tela mesh. (Acabados en conjunto con la silla directiva) y metal en cromo.(MOBILIARIO NORMAL) | D59: Pza. | E59: 14.00 | F59: $795,424.00 | G59: $11,135,936.00 | I59: 14.00 | K59: $0.00
A60: ESP 21.5.0 | B60: 21.5.6 | C60: Suministro y transporte de Mesa circular para 4 personas de 1.00 de diámetro, con cubierta en melamina con canto PVC, estructura metálica, terminado con pintura electrostática.(MOBILIARIO NORMAL) | D60: Pza. | E60: 1.00 | F60: $1,786,548.00 | G60: $1,786,548.00 | I60: 1.00 | K60: $0.00
A61: ESP 21.5.0 | B61: 21.5.7 | C61: Módulo operativo de 1.70 X 0.90 m (ANEXO 27. FICHA TECNICA MOBILIARIO ESPECIALIZADO)para un usuario, hecho a base de estructura metálica con superficie recta recortada y cantos termofusionados con groumets, Acabados en melamina blanca de 28mm Incluye pasacables interno (charola horizontal) con 6 espacios para instalaciones y charola (vertical) lateral para subir y ocultar instalaciones y charola para cables y accesorios porta CPU, porta monitor doble. | D61: Pza. | E61: 10.00 | F61: $524,171,853.68 | G61: $5,241,718,536.80 | I61: 10.00 | K61: $0.00
A62: ESP 21.5.0 | B62: 21.5.8 | C62: SILLA ERGONÓMICA 24/7 FREEDOM HEADREST - ALUMINIO (ANEXO 27. FICHA TECNICA MOBILIARIO ESPECIALIZADO) | D62: Pza. | E62: 110.00 | F62: $12,708,349.69 | G62: $1,397,918,465.90 | I62: 110.00 | K62: $0.00
A63: ESP 21.5.0 | B63: 21.5.9 | C63: Módulo operativo de 1.40 X 0.70 m para un usuario, hecho a base de estructura metálica con superficie recta recortada y cantos termofusionados con groumets, Acabados en melamina blanca de 28mm Incluye pasacables interno (charola horizontal) con 6 espacios para instalaciones y charola (vertical) lateral para subir y ocultar instalaciones y charola para cables y accesorios porta CPU, porta monitor doble. (ANEXO 27. FICHA TECNICA MOBILIARIO ESPECIALIZADO) | D63: Pza. | E63: 5.00 | F63: $294,559,767.17 | G63: $1,472,798,835.85 | I63: 5.00 | K63: $0.00
A64: ESP 21.5.0 | B64: 21.5.10 | C64: SILLA ERGONÓMICA 24/7 FREEDOM HEADREST - ALUMINIO (ANEXO 27. FICHA TECNICA MOBILIARIO ESPECIALIZADO) | D64: Pza. | E64: 30.00 | F64: $12,708,349.69 | G64: $381,250,490.70 | I64: 30.00 | K64: $0.00
C66: TOTAL DE MOBILIARIO N6 | G66: =SUM(G55:G64) -> $9,048,747,280.78 | K66: =SUM(K55:K64) -> $0.00
B68: 21.6.0 | C68: MOBILIARIO N7
A69: ESP 21.6.0 | B69: 21.6.1 | C69: Módulo operativo de 1.70 X 0.90 m para un usuario, hecho a base de estructura metálica con superficie recta recortada y cantos termofusionados con groumets, Acabados en melamina blanca de 28mm Incluye pasacables interno (charola horizontal) con 6 espacios para instalaciones y charola (vertical) lateral para subir y ocultar instalaciones y charola para cables y accesorios porta CPU, porta monitor doble (ANEXO 27. FICHA TECNICA MOBILIARIO ESPECIALIZADO) | D69: Pza. | E69: 5.00 | F69: $305,926,806.25 | G69: =F69*E69 -> $1,529,634,031.25 | I69: 5.00 | K69: =J69*I69 -> $0.00
A70: ESP 21.6.0 | B70: 21.6.2 | C70: Suministro de SILLA ERGONÓMICA 24/7 FREEDOM HEADREST - aluminio (ANEXO 27. FICHA TECNICA MOBILIARIO ESPECIALIZADO) | D70: Pza. | E70: 43.00 | F70: $12,708,349.69 | G70: $546,459,036.67 | I70: 43.00 | K70: $0.00
A71: ESP 21.6.0 | B71: 21.6.3 | C71: Suministro y transporte de Módulo operativo de 1.00 X 0.60 m para un usuario, hecho a base de estructura metálica | D71: Pza. | E71: 40.00 | F71: $2,474,653.00 | G71: $98,986,120.00 | I71: 40.00 | K71: $0.00
A72: ESP 21.6.0 | B72: 21.6.4 | C72: Suministro y transporte de Silla Operativa, Ergonómica y para trabajo 24x24, con descansabrazos, base cinco puntos | D72: Pza. | E72: 40.00 | F72: $2,929,181.00 | G72: $117,167,240.00 | I72: 40.00 | K72: $0.00
A73: ESP 21.6.0 | B73: 21.6.5 | C73: Suministro y transporte de Módulo operativo de 1.40 X 0.70 m para un usuario, hecho a base de estructura metálica | D73: Pza. | E73: 20.00 | F73: $2,802,923.00 | G73: $56,058,460.00 | I73: 20.00 | K73: $0.00
A74: ESP 21.6.0 | B74: 21.5.6 | C74: Suministro y transporte de MESA CURVA FIJA para 3 usuarios | D74: un | E74: 1.00 | F74: $828,240.00 | G74: $828,240.00 | I74: 1.00 | K74: $0.00
A75: ESP 21.6.0 | B75: 21.6.7 | C75: Suministro y transporte de Módulo operativo con credenza lateral 1.35 x 1.50 hecho a base de estructura metálica | D75: Pza. | E75: 1.00 | F75: $5,088,190.00 | G75: $5,088,190.00 | I75: 1.00 | K75: $0.00
A76: ESP 21.6.0 | B76: 21.6.8 | C76: Mesa sala de juntas 10 personas de 2.20 x 1.00 m, con ducto vertical de subida de cables por pata, 4 accesorios sobre cubierta para electrificación (2 salidas). Acabados en melamina blanca de 28 mm y estructura metálica. | D76: Pza. | E76: 1.00 | F76: $5,599,534.00 | G76: $5,599,534.00 | I76: 1.00 | K76: $0.00
A77: ESP 21.6.0 | B77: 21.6.9 | C77: Mesa sala de juntas 20 personas de 2.20 x 1.00 m, con ducto vertical de subida de cables por pata, 8 accesorios sobre cubierta para electrificación (4 salidas). Acabados en melamina blanca de 28 mm y estructura metálica. | D77: Pza. | E77: 1.00 | F77: $3,598,560.00 | G77: $3,598,560.00 | I77: 1.00 | K77: $0.00
A78: ESP 21.6.0 | B78: 21.6.10 | C78: Suministro y transporte de Silla Operativa, Ergonómica y para trabajo 24x24, con descansabrazos, base cinco puntos | D78: Pza. | E78: 53.00 | F78: $2,929,181.00 | G78: $155,246,593.00 | I78: 53.00 | K78: $0.00
A79: ESP 21.6.0 | B79: 21.6.11 | C79: Silla Visita (Interlocutoras) con brazos, con base y estructura de polipropileno de 4 puntos fijos, respaldo y asiento tapizados en tela mesh. (Acabados en conjunto con la silla directiva) y metal en cromo. | D79: Pza. | E79: 2.00 | F79: $795,424.00 | G79: $1,590,848.00 | I79: 2.00 | K79: $0.00
C81: TOTAL DE MOBILIARIO N7 | G81: =SUM(G69:G79) -> $2,520,256,852.92 | K81: =SUM(K69:K79) -> $0.00
B83: 21.7.0 | C83: MOBILIARIO N8
A84: ESP 21.7.0 | B84: 21.7.1 | C84: Suministro y transporte de Módulo operativo de 1.40 X 0.70 m para un usuario, hecho a base de estructura metálica | D84: Pza. | E84: 5.00 | F84: $2,802,923.00 | G84: =F84*E84 -> $14,014,615.00 | I84: 5.00 | K84: =J84*I84 -> $0.00
C86: TOTAL DE MOBILIARIO N8 | G86: =G84 -> $14,014,615.00 | K86: =K84 -> $0.00
B88: 21.8.0 | C88: VARIOS MOBILIARIO
A89: ESP 21.8.0 | B89: 21.8.1 | C89: Suministro, transporte de sillón sin cabecera, con respaldo bajo, descansa brazos, con base de 4 patas en tubular de acero pintado en negro | D89: un | E89: 42.00 | F89: $992,460.00 | G89: =F89*E89 -> $41,683,320.00 | I89: 42.00 | K89: =J89*I89 -> $0.00
A90: ESP 21.8.0 | B90: 21.8.2 | C90: Suministro, transporte Silla universitaria con asiento tapizado | D90: un | E90: 12.00 | F90: $854,840.00 | G90: $10,258,080.00 | I90: 12.00 | K90: $0.00
A91: ESP 21.8.0 | B91: 21.8.3 | C91: Suministro y transporte de mesa auxiliar redonda | D91: un | E91: 32.00 | F91: $699,720.00 | G91: $22,391,040.00 | I91: 32.00 | K91: $0.00
A92: ESP 21.8.0 | B92: 21.8.4 | C92: Suministro y transporte de sofá de 3 puestos | D92: un | E92: 8.00 | F92: $4,148,722.00 | G92: $33,189,776.00 | I92: 8.00 | K92: $0.00
A93: ESP 21.8.0 | B93: 21.8.5 | C93: Suministro, transporte e instalación de MESA RECTANGULAR 1,20X0,80 para 4 personas, con cubierta en melamina con canto PVC, estructura metálica, terminado con pintura electrostática.(MOBILIARIO NORMAL) | D93: un | E93: 23.00 | F93: $2,573,603.00 | G93: $59,192,869.00 | I93: 23.00 | K93: $0.00
A94: ESP 21.8.0 | B94: 21.8.6 | C94: Suministro, transporte de locker de 15x15 | D94: un | E94: 130.00 | F94: $2,573,603.00 | G94: $334,568,390.00 | I94: 130.00 | K94: $0.00
A95: ESP 21.8.0 | B95: 21.8.7 | C95: Suministro, transporte de archivador con pedestal con tapa | D95: un | E95: 135.00 | F95: $980,953.00 | G95: $132,428,655.00 | I95: 135.00 | K95: $0.00
A96: ESP 21.8.0 | B96: 21.8.8 | C96: Silla Visita (Interlocutoras) con brazos, con base y estructura de polipropileno de 4 puntos fijos, respaldo y asiento tapizados en tela mesh. (Acabados en conjunto con la silla directiva) y metal en cromo. | D96: Pza. | E96: 546.00 | F96: $795,424.00 | G96: $434,301,504.00 | I96: 546.00 | K96: $0.00
A97: ESP 21.8.0 | B97: 21.8.9 | C97: Suministro y transporte de MUEBLE DE RECEPCION BLANCA-GRIS DE 0,60 X 2,40 X 1.00 m DELVERG | D97: un | E97: 3.00 | F97: $5,212,680.00 | G97: $15,638,040.00 | I97: 3.00 | K97: $0.00
A98: ESP 21.8.0 | B98: 21.8.10 | C98: Suministro y transporte de MUEBLE DE RECEPCION BLANCA DE 0,60 X 1,50 X 1.00 m DELVERG | D98: un | E98: 5.00 | F98: $2,039,879.00 | G98: $10,199,395.00 | I98: 5.00 | K98: $0.00
B100: 21.9.0 | C100: ANEXO MOBILIARIO
A101: ESP 21.9.1 | B101: 21.9.1 | C101: Suministro, transporte y colocación de pantalla modelo VM55B-U Ultra Narrow Bezel Video Wall de 55" panel tipo IPS, Marca Samsung, resolución 1,920 x 1,080 de dimensiones 1213,5 x 684,3 x 73,1 mm, peso de 21,2 kg, montura 600 x 400 mm, anchura de bisel 2,25mm(U/L), 125mm(R/B) material del marco Glossy. | D101: un | E101: 2.00 | F101: $5,433,962.00 | G101: =F101*E101 -> $10,867,924.00 | I101: 2.00 | K101: =J101*I101 -> $0.00
A102: ESP 21.9.2 | B102: 21.9.2 | C102: Suministro, transporte y colocación de escalera marina metálica de 4.96m de longitud, fijada a la pared, el piso y el techo, incluye protección en la espalda de 0.81m x 0.70m. Incluye pasamanos en la parte superior de 1.11m de alto x 1.40m de largo y todos los elementos necesarios para su correcto funcionamiento. | D102: un | E102: 1 | F102: $7,111,382.00 | G102: =F102*E102 -> $7,111,382.00 | I102: 1 | K102: =J102*I102 -> $0.00
A103: ESP 21.9.3 | B103: 21.9.3 | C103: Suministro e instalación de poste de concreto prensado de 14 metros: Incluye la provisión de poste de concreto reforzado, tipo prensado, con una longitud de 14 metros, conforme a la normativa RETIE y las especificaciones técnicas de la empresa prestadora del servicio de energía. El poste debe tener una carga de trabajo mínima de 300 kg y una carga de rotura de al menos 750 kg, con tratamiento superficial adecuado para resistir condiciones ambientales adversas y perforaciones según requerimientos para instalación de accesorios eléctricos. La instalación comprende excavación manual del terreno, ubicación y nivelación del poste, relleno y compactación con material apropiado, instalación de retenidas si se requiere, y aseguramiento con concreto según diseño estructural. Se incluye el transporte, maniobras de izaje, materiales, equipos, mano de obra calificada y todas las actividades necesarias para dejar el poste instalado y funcional, listo para la conexión de redes eléctricas aéreas. | D103: un | E103: 3 | F103: $4,898,886.06 | G103: =E103*F103 -> $14,696,658.18 | I103: 3 | K103: =I103*J103 -> $0.00
A104: ESP 21.9.4 | B104: 21.9.4 | C104: Suministro, transporte e instalación de nichos en Drywall con Recubrimiento en formica (laminado de alta presión Ref. Real 2224 Opak Bleen Bleen y exterior en laminado de alta presión Ref. real 1556 Up Roble sepia o equivalente), incluye dintel y banca en drywall, cojinería en vértigo nuvant gris claro con cierres ocultos y todos los elementos necesarios para su correcto funcionamiento. | D104: un | E104: 4 | F104: $52,457,655.00 | G104: =E104*F104 -> $209,830,620.00 | I104: 4 | K104: =I104*J104 -> $0.00
C105: TOTAL DE VARIOS MOBILIARIO | G105: =SUM(G89:G104) -> $1,336,357,653.18 | K105: =SUM(K89:K104) -> $0.00
C107: TOTAL DE MOBILIARIO | G107: =G105+G86+G81+G66+G52+G40 -> $13,401,523,507.08 | K107: =K105+K86+K81+K66+K52+K40 -> $0.00
A108: NOTA ACLARATORIA: | B108: Este producto está sujeto a modificaciones, ya que los diseños de redes hidrosanitarias externas aún no han sido aprobados por EPM. En consecuencia, los costos de este entregable podrían variar.
E110: RESUMEN A COSTO DIRECTO | I110: RESUMEN A COSTO DIRECTO
E111: TOTAL PANELES SOLARES | G111: =G16 -> $436,122,663.16 | I111: TOTAL PANELES SOLARES | K111: =K16 -> $0.00
A112: Comentarios respecto a ÍTEMS enlistados: | E112: TOTAL CIELOS | G112: =G28 -> $2,213,351,607.90 | I112: TOTAL CIELOS | K112: =K28 -> $0.00
A113: ITEM | B113: COMENTARIOS | E113: TOTAL MOBILIARIO | G113: =G107 -> $13,401,523,507.08 | I113: TOTAL MOBILIARIO | K113: =K107 -> $0.00
A114: 9.0.0 | B114: La información utilizada como base para el presupuesto de RCI, fue con los precios de lista que maneja el diseñador. RCI | F114: TOTAL CD ADICIÓN | G114: =G113+G112+G111 -> $16,050,997,778.13 | J114: TOTAL CD ADICIÓN | K114: =K113+K112+K111 -> $0.00
A115: 12.0.0 | B115: La información utilizada como base para el presupuesto de Aire acondicionado, fue con los precios de lista que maneja el diseñador. AIRE ACONDICIONADO
A116: 13.0.0 | B116: La información utilizada como base para el presupuesto eléctrico, fue con los precios de lista que maneja el diseñador y cotizaciones anexas a la información ELECTRICO | E116: OBRA COSTO INDIRECTO | I116: OBRA COSTO INDIRECTO
A117: 14.1.8 | B117: La pintura para señalización de columnas se encuentra en el capítulo 14.0.0 Sistemas tecnológicos, subcapítulo 14.1.8 Señalética; fue asignado en este capítulo porque la información la diseño el departamento de Tecnología | E117: A(%) | G117: 15.36% | I117: A(%) | K117: 15.36%
A118: 16.1.1 - 16.1.2 | B118: Para la recolección de basura y escombro que se generen mediante los ítem de aseo, estos deberán estar en un acopio asignado por la obra | E118: U(%) | G118: 5.00% | I118: U(%) | K118: 5.00%
A119: 16.1.1 - 16.1.2 | B119: Los precios para estos ítems fueron asignados por la ESU (Ing Juan Villa), de igual manera se presenta una cotización para estas actividades ASEO | E119: AU(%) | G119: =SUM(G117:G118) -> 20.36% | I119: AU(%) | K119: =SUM(K117:K118) -> 20.36%
B120: Para los materiales o insumos de exportación dentro del presupuesto, se maneja una TRM de $4298.31 COP (24-04-25), fuente: https://www.dolar-colombia.com/mes/2025-04
B121: En la carpeta de 2. Cotizaciones Se encuentra relacionado las cotizaciones solicitadas para las actividades del presupuesto, adicional en algunos casos fueron utilizados los precios de lista de algunos insumos
B122: Una vez se cuente con la aprobación de las redes externas se debe tener en cuenta los cambios en los costos, cantidades y duraciones finales de las redes hidrosanitarias externas e internas, puesto que se están actualizando estos diseños debido a información referente a la topografía e investigación de redes. Es importante aclarar que estos diseños pueden tener variaciones en su planteamiento ya que aún no ha sido aprobado por parte de EPM en el diseño de redes exteriores.
A123: 10.1.2.3.4 | B123: En este ítem la información ingresada en el apu el costo del ducto se encuentra ingresada por unidad.
A124: 13.10.0 | B124: Los ductos de las actividades de este subcapítulo (SISTEMA DE DUCTOS METÁLICOS) , el costo de los mismos se encuentra por unidad.
A125: 8.6.0 | B125: VARIOS APARATOS SANITARIOS: aparatos sanitarios son los accesorios con el fin de cubrir todo lo relacionado con urinarios, retretes, lavaderos, duchas y demás.
